{"text_format":"1","workbook":"xlsx","n_sheets":6,"sheets":["JSON_Results","Settings","All Campaigns","SP Keyword","SB Keyword","SP Product"],"not_rendered":{"charts":0,"images":0,"macros":1,"external_links":0,"defined_names":0,"comments":0,"pivot_tables":0},"unopened":[],"bounds":{"document_bytes":16777216,"sheet_cells":100000,"rows_first":2000,"rows_last":500,"rows_between":2000,"halvings":0,"cell_chars":16384,"cell_head_chars":4096},"cells_cut":0,"cells_raw":0,"read":"whole","date_system":"1900"}

{"sheet":"JSON_Results","index":0,"n_rows":202680,"n_cols":11,"rows_kept":4500,"cut":true,"hidden":true,"merged":[],"bounds":{"rows_first":2000,"rows_last":500,"rows_between":2000,"halvings":0}}
["JSON Key","JSON Value","Actual Array Lengths  Adds 1 at what it is showed - item 1 starts at index 0",null,null,null,null,null,"arr_headers(",")=\"","\""]
["totalElements","21228",null,null,null,null,0,null,{"$f":"$I$1&G2&$J$1&H2&$K$1","v":"arr_headers(0)=\"\""}]
["size","10000",null,null,null,null,1,null,{"$f":"$I$1&G3&$J$1&H3&$K$1","v":"arr_headers(1)=\"\""}]
["number","1",null,null,null,null,2,null,"arr_headers(2)=\"\""]
["content",9999,null,null,null,null,3,null,"arr_headers(3)=\"\""]
["content.0","",null,null,null,null,4,null,"arr_headers(4)=\"\""]
["content.0.keywordId","222222222222223",null,null,null,null,5,null,"arr_headers(5)=\"\""]
["content.0.campaignId","111111120000203",null,null,null,null,6,null,"arr_headers(6)=\"\""]
["content.0.adgroupId","111111120000203",null,null,null,null,7,null,"arr_headers(7)=\"\""]
["content.0.bid","0.50",null,null,null,null,8,null,"arr_headers(8)=\"\""]
["content.0.keywordText","permission distance distance charge",null,null,null,null,9,null,"arr_headers(9)=\"\""]
["content.0.matchType","exact",null,null,null,null,10,null,"arr_headers(10)=\"\""]
["content.0.campaignName","SP_M_KT - B1 Quad Drones",null,null,null,null,11,null,"arr_headers(11)=\"\""]
["content.0.state","enabled",null,null,null,null,12,null,"arr_headers(12)=\"\""]
["content.0.conversions","0",null,null,null,null,13,null,"arr_headers(13)=\"\""]
["content.0.reportDate","2020-03-09",null,null,null,null,14,null,"arr_headers(14)=\"\""]
["content.0.impressions","269",null,null,null,null,15,null,"arr_headers(15)=\"\""]
["content.0.clicks","4",null,null,null,null,16,null,"arr_headers(16)=\"\""]
["content.0.orders","0",null,null,null,null,17,null,"arr_headers(17)=\"\""]
["content.0.ctr","1.49",null,null,null,null,18,null,"arr_headers(18)=\"\""]
["content.0.averageCpc","0.28",null,null,null,null,19,null,"arr_headers(19)=\"\""]
["content.0.spend","1.10",null,null,null,null,20,null,"arr_headers(20)=\"\""]
["content.0.roas","0.00"]
["content.0.revenue","0.00"]
["content.0.adgroupName","B1 Quad Drones"]
["content.0.conversionRate","0.00",null,null,null,null,null,"acos"]
["content.1.keywordId","222222222222229",null,null,null,null,null,"adgroupId"]
["content.1.campaignId","111111120000203",null,null,null,null,null,"averageCpc"]
["content.1.adgroupId","111111120000203",null,null,null,null,null,"bid"]
["content.1.bid","0.50",null,null,null,null,null,"campaignId"]
["content.1.keywordText","insurance distance distance weight",null,null,null,null,null,"campaignName"]
["content.1.matchType","exact",null,null,null,null,null,"clicks"]
["content.1.campaignName","SP_M_KT - B1 Quad Drones",null,null,null,null,null,"conversionRate"]
["content.1.state","enabled",null,null,null,null,null,"conversions"]
["content.1.conversions","0",null,null,null,null,null,"ctr"]
["content.1.reportDate","2020-03-09",null,null,null,null,null,"impressions"]
["content.1.impressions","213",null,null,null,null,null,"keywordId"]
["content.1.clicks","1",null,null,null,null,null,"keywordText"]
["content.1.orders","0",null,null,null,null,null,"matchType"]
["content.1.ctr","0.47",null,null,null,null,null,"orders"]
["content.1.averageCpc","0.40",null,null,null,null,null,"reportDate"]
["content.1.spend","0.40",null,null,null,null,null,"revenue"]
["content.1.roas","0.00",null,null,null,null,null,"roas"]
["content.1.revenue","0.00",null,null,null,null,null,"spend"]
["content.1.adgroupName","B1 Quad Drones",null,null,null,null,null,"state"]
["content.1.conversionRate","0.00"]
["content.2.keywordId","222222222222231"]
["content.2.campaignId","111111120000203"]
["content.2.adgroupId","111111120000203"]
["content.2.bid","0.50"]
["content.2.keywordText","filters battery battery permission"]
["content.2.matchType","exact"]
["content.2.campaignName","SP_M_KT - B1 Quad Drones"]
["content.2.state","enabled"]
["content.2.conversions","0"]
["content.2.reportDate","2020-03-09"]
["content.2.impressions","234"]
["content.2.clicks","4"]
["content.2.orders","0"]
["content.2.ctr","1.71"]
["content.2.averageCpc","0.29"]
["content.2.spend","1.15"]
["content.2.roas","0.00"]
["content.2.revenue","0.00"]
["content.2.adgroupName","B1 Quad Drones"]
["content.2.conversionRate","0.00"]
["content.3.keywordId","222222222222235"]
["content.3.campaignId","111111120000203"]
["content.3.adgroupId","111111120000203"]
["content.3.bid","0.50"]
["content.3.keywordText","weight charge charge charge"]
["content.3.matchType","exact"]
["content.3.campaignName","SP_M_KT - B1 Quad Drones"]
["content.3.state","enabled"]
["content.3.conversions","0"]
["content.3.reportDate","2020-03-09"]
["content.3.impressions","158"]
["content.3.clicks","4"]
["content.3.orders","0"]
["content.3.ctr","2.53"]
["content.3.averageCpc","0.39"]
["content.3.spend","1.54"]
["content.3.roas","0.00"]
["content.3.revenue","0.00"]
["content.3.adgroupName","B1 Quad Drones"]
["content.3.conversionRate","0.00"]
["content.4.keywordId","222222222222242"]
["content.4.campaignId","111111120000203"]
["content.4.adgroupId","111111120000203"]
["content.4.bid","0.50"]
["content.4.keywordText","weight damage damage weight"]
["content.4.matchType","exact"]
["content.4.campaignName","SP_M_KT - B1 Quad Drones"]
["content.4.state","enabled"]
["content.4.conversions","0"]
["content.4.reportDate","2020-03-09"]
["content.4.impressions","270"]
["content.4.clicks","3"]
["content.4.orders","0"]
["content.4.ctr","1.11"]
["content.4.averageCpc","0.37"]
["content.4.spend","1.12"]
["content.4.roas","0.00"]
["content.4.revenue","0.00"]
["content.4.adgroupName","B1 Quad Drones"]
["content.4.conversionRate","0.00"]
["content.5.keywordId","222222222222248"]
["content.5.campaignId","111111120000205"]
["content.5.adgroupId","111111120000205"]
["content.5.bid","0.40"]
["content.5.keywordText","weight height weight"]
["content.5.matchType","exact"]
["content.5.campaignName","SP_M_KT - B2 Drones"]
["content.5.state","enabled"]
["content.5.conversions","0"]
["content.5.reportDate","2020-03-09"]
["content.5.impressions","497"]
["content.5.clicks","3"]
["content.5.orders","0"]
["content.5.ctr","0.60"]
["content.5.averageCpc","0.37"]
["content.5.spend","1.12"]
["content.5.roas","0.00"]
["content.5.revenue","0.00"]
["content.5.adgroupName","B2 Drones"]
["content.5.conversionRate","0.00"]
["content.6.keywordId","222222222222257"]
["content.6.campaignId","111111120000205"]
["content.6.adgroupId","111111120000205"]
["content.6.bid","0.30"]
["content.6.keywordText","weight height weight"]
["content.6.matchType","phrase"]
["content.6.campaignName","SP_M_KT - B2 Drones"]
["content.6.state","enabled"]
["content.6.conversions","0"]
["content.6.reportDate","2020-03-09"]
["content.6.impressions","271"]
["content.6.clicks","2"]
["content.6.orders","0"]
["content.6.ctr","0.74"]
["content.6.averageCpc","0.44"]
["content.6.spend","0.87"]
["content.6.roas","0.00"]
["content.6.revenue","0.00"]
["content.6.adgroupName","B2 Drones"]
["content.6.conversionRate","0.00"]
["content.7.keywordId","222222222222263"]
["content.7.campaignId","111111120000205"]
["content.7.adgroupId","111111120000205"]
["content.7.bid","0.35"]
["content.7.keywordText","permission height permission"]
["content.7.matchType","phrase"]
["content.7.campaignName","SP_M_KT - B2 Drones"]
["content.7.state","enabled"]
["content.7.conversions","0"]
["content.7.reportDate","2020-03-09"]
["content.7.impressions","216"]
["content.7.clicks","5"]
["content.7.orders","0"]
["content.7.ctr","2.31"]
["content.7.averageCpc","0.42"]
["content.7.spend","2.12"]
["content.7.roas","0.00"]
["content.7.revenue","0.00"]
["content.7.adgroupName","B2 Drones"]
["content.7.conversionRate","0.00"]
["content.8.keywordId","222222222222272"]
["content.8.campaignId","111111120000209"]
["content.8.adgroupId","111111120000209"]
["content.8.bid","0.40"]
["content.8.keywordText","battery insurance battery"]
["content.8.matchType","exact"]
["content.8.campaignName","SP_M_KT - B4 Quad Drones"]
["content.8.state","enabled"]
["content.8.conversions","1"]
["content.8.reportDate","2020-03-09"]
["content.8.impressions","389"]
["content.8.clicks","4"]
["content.8.orders","0"]
["content.8.ctr","1.03"]
["content.8.averageCpc","0.32"]
["content.8.spend","1.27"]
["content.8.acos","7.94"]
["content.8.roas","12.59"]
["content.8.revenue","15.99"]
["content.8.adgroupName","B4 QuadPro Drones"]
["content.8.conversionRate","25.00"]
["content.9.keywordId","222222222222276"]
["content.9.campaignId","111111120000227"]
["content.9.adgroupId","111111120000227"]
["content.9.bid","0.50"]
["content.9.keywordText","filters legal legal size"]
["content.9.matchType","exact"]
["content.9.campaignName","SP_M_KT - BB6 Drones"]
["content.9.state","enabled"]
["content.9.conversions","0"]
["content.9.reportDate","2020-03-09"]
["content.9.impressions","648"]
["content.9.clicks","9"]
["content.9.orders","0"]
["content.9.ctr","1.39"]
["content.9.averageCpc","0.37"]
["content.9.spend","3.29"]
["content.9.roas","0.00"]
["content.9.revenue","0.00"]
["content.9.adgroupName","BB6 Drones"]
["content.9.conversionRate","0.00"]
["content.10.keywordId","222222222222287"]
["content.10.campaignId","111111120000227"]
["content.10.adgroupId","111111120000227"]
["content.10.bid","0.50"]
["content.10.keywordText","height camera camera range"]
["content.10.matchType","exact"]
["content.10.campaignName","SP_M_KT - BB6 Drones"]
["content.10.state","enabled"]
["content.10.conversions","0"]
["content.10.reportDate","2020-03-09"]
["content.10.impressions","394"]
["content.10.clicks","1"]
["content.10.orders","0"]
["content.10.ctr","0.25"]
["content.10.averageCpc","0.30"]
["content.10.spend","0.30"]
["content.10.roas","0.00"]
["content.10.revenue","0.00"]
["content.10.adgroupName","BB6 Drones"]
["content.10.conversionRate","0.00"]
["content.11.keywordId","222222222222293"]
["content.11.campaignId","111111120000227"]
["content.11.adgroupId","111111120000227"]
["content.11.bid","0.50"]
["content.11.keywordText","battery filters filters charge"]
["content.11.matchType","exact"]
["content.11.campaignName","SP_M_KT - BB6 Drones"]
["content.11.state","enabled"]
["content.11.conversions","0"]
["content.11.reportDate","2020-03-09"]
["content.11.impressions","398"]
["content.11.clicks","2"]
["content.11.orders","0"]
["content.11.ctr","0.50"]
["content.11.averageCpc","0.30"]
["content.11.spend","0.59"]
["content.11.roas","0.00"]
["content.11.revenue","0.00"]
["content.11.adgroupName","BB6 Drones"]
["content.11.conversionRate","0.00"]
["content.12.keywordId","222222222222297"]
["content.12.campaignId","111111120000227"]
["content.12.adgroupId","111111120000227"]
["content.12.bid","0.50"]
["content.12.keywordText","weight charge charge damage"]
["content.12.matchType","broad"]
["content.12.campaignName","SP_M_KT - BB6 Drones"]
["content.12.state","enabled"]
["content.12.conversions","0"]
["content.12.reportDate","2020-03-09"]
["content.12.impressions","65"]
["content.12.clicks","1"]
["content.12.orders","0"]
["content.12.ctr","1.54"]
["content.12.averageCpc","0.21"]
["content.12.spend","0.21"]
["content.12.roas","0.00"]
["content.12.revenue","0.00"]
["content.12.adgroupName","BB6 Drones"]
["content.12.conversionRate","0.00"]
["content.13.keywordId","222222222222303"]
["content.13.campaignId","111111120000227"]
["content.13.adgroupId","111111120000227"]
["content.13.bid","0.75"]
["content.13.keywordText","range camera camera charge"]
["content.13.matchType","phrase"]
["content.13.campaignName","SP_M_KT - BB6 Drones"]
["content.13.state","enabled"]
["content.13.conversions","0"]
["content.13.reportDate","2020-03-09"]
["content.13.impressions","100"]
["content.13.clicks","1"]
["content.13.orders","0"]
["content.13.ctr","1.00"]
["content.13.averageCpc","0.28"]
["content.13.spend","0.28"]
["content.13.roas","0.00"]
["content.13.revenue","0.00"]
["content.13.adgroupName","BB6 Drones"]
["content.13.conversionRate","0.00"]
["content.14.keywordId","222222222222304"]
["content.14.campaignId","111111120000227"]
["content.14.adgroupId","111111120000227"]
["content.14.bid","0.53"]
["content.14.keywordText","permission Wifi Wifi weight"]
["content.14.matchType","exact"]
["content.14.campaignName","SP_M_KT - BB6 Drones"]
["content.14.state","enabled"]
["content.14.conversions","0"]
["content.14.reportDate","2020-03-09"]
["content.14.impressions","187"]
["content.14.clicks","1"]
["content.14.orders","0"]
["content.14.ctr","0.53"]
["content.14.averageCpc","0.38"]
["content.14.spend","0.38"]
["content.14.roas","0.00"]
["content.14.revenue","0.00"]
["content.14.adgroupName","BB6 Drones"]
["content.14.conversionRate","0.00"]
["content.15.keywordId","222222222222307"]
["content.15.campaignId","111111120000227"]
["content.15.adgroupId","111111120000227"]
["content.15.bid","0.97"]
["content.15.keywordText","distance battery battery range"]
["content.15.matchType","phrase"]
["content.15.campaignName","SP_M_KT - BB6 Drones"]
["content.15.state","enabled"]
["content.15.conversions","3"]
["content.15.reportDate","2020-03-09"]
["content.15.impressions","467"]
["content.15.clicks","2"]
["content.15.orders","0"]
["content.15.ctr","0.43"]
["content.15.averageCpc","0.43"]
["content.15.spend","0.86"]
["content.15.acos","2.27"]
["content.15.roas","44.12"]
["content.15.revenue","37.94"]
["content.15.adgroupName","BB6 Drones"]
["content.15.conversionRate","150.00"]
["content.16.keywordId","222222222222311"]
["content.16.campaignId","111111120000227"]
["content.16.adgroupId","111111120000227"]
["content.16.bid","0.50"]
["content.16.keywordText","charge range range range"]
["content.16.matchType","broad"]
["content.16.campaignName","SP_M_KT - BB6 Drones"]
["content.16.state","enabled"]
["content.16.conversions","1"]
["content.16.reportDate","2020-03-09"]
["content.16.impressions","3403"]
["content.16.clicks","7"]
["content.16.orders","0"]
["content.16.ctr","0.21"]
["content.16.averageCpc","0.37"]
["content.16.spend","2.62"]
["content.16.acos","9.36"]
["content.16.roas","10.68"]
["content.16.revenue","27.99"]
["content.16.adgroupName","BB6 Drones"]
["content.16.conversionRate","14.29"]
["content.17.keywordId","222222222222314"]
["content.17.campaignId","111111120000227"]
["content.17.adgroupId","111111120000227"]
["content.17.bid","0.35"]
["content.17.keywordText","range charge charge range"]
["content.17.matchType","broad"]
["content.17.campaignName","SP_M_KT - BB6 Drones"]
["content.17.state","enabled"]
["content.17.conversions","0"]
["content.17.reportDate","2020-03-09"]
["content.17.impressions","756"]
["content.17.clicks","2"]
["content.17.orders","0"]
["content.17.ctr","0.26"]
["content.17.averageCpc","0.33"]
["content.17.spend","0.65"]
["content.17.roas","0.00"]
["content.17.revenue","0.00"]
["content.17.adgroupName","BB6 Drones"]
["content.17.conversionRate","0.00"]
["content.18.keywordId","222222222222317"]
["content.18.campaignId","111111120000227"]
["content.18.adgroupId","111111120000227"]
["content.18.bid","0.40"]
["content.18.keywordText","damage size size legal"]
["content.18.matchType","broad"]
["content.18.campaignName","SP_M_KT - BB6 Drones"]
["content.18.state","enabled"]
["content.18.conversions","0"]
["content.18.reportDate","2020-03-09"]
["content.18.impressions","1047"]
["content.18.clicks","1"]
["content.18.orders","0"]
["content.18.ctr","0.10"]
["content.18.averageCpc","0.28"]
["content.18.spend","0.28"]
["content.18.roas","0.00"]
["content.18.revenue","0.00"]
["content.18.adgroupName","BB6 Drones"]
["content.18.conversionRate","0.00"]
["content.19.keywordId","222222222222320"]
["content.19.campaignId","111111120000227"]
["content.19.adgroupId","111111120000227"]
["content.19.bid","0.50"]
["content.19.keywordText","insurance weight weight charge"]
["content.19.matchType","exact"]
["content.19.campaignName","SP_M_KT - BB6 Drones"]
["content.19.state","enabled"]
["content.19.conversions","0"]
["content.19.reportDate","2020-03-09"]
["content.19.impressions","1418"]
["content.19.clicks","8"]
["content.19.orders","0"]
["content.19.ctr","0.56"]
["content.19.averageCpc","0.44"]
["content.19.spend","3.54"]
["content.19.roas","0.00"]
["content.19.revenue","0.00"]
["content.19.adgroupName","BB6 Drones"]
["content.19.conversionRate","0.00"]
["content.20.keywordId","222222222222323"]
["content.20.campaignId","111111120000227"]
["content.20.adgroupId","111111120000227"]
["content.20.bid","0.38"]
["content.20.keywordText","battery weight weight permission"]
["content.20.matchType","phrase"]
["content.20.campaignName","SP_M_KT - BB6 Drones"]
["content.20.state","enabled"]
["content.20.conversions","0"]
["content.20.reportDate","2020-03-09"]
["content.20.impressions","1547"]
["content.20.clicks","1"]
["content.20.orders","0"]
["content.20.ctr","0.06"]
["content.20.averageCpc","0.38"]
["content.20.spend","0.38"]
["content.20.roas","0.00"]
["content.20.revenue","0.00"]
["content.20.adgroupName","BB6 Drones"]
["content.20.conversionRate","0.00"]
["content.21.keywordId","222222222222331"]
["content.21.campaignId","111111120000227"]
["content.21.adgroupId","111111120000227"]
["content.21.bid","0.45"]
["content.21.keywordText","filters height height distance"]
["content.21.matchType","exact"]
["content.21.campaignName","SP_M_KT - BB6 Drones"]
["content.21.state","enabled"]
["content.21.conversions","1"]
["content.21.reportDate","2020-03-09"]
["content.21.impressions","667"]
["content.21.clicks","4"]
["content.21.orders","0"]
["content.21.ctr","0.60"]
["content.21.averageCpc","0.31"]
["content.21.spend","1.22"]
["content.21.acos","8.15"]
["content.21.roas","12.27"]
["content.21.revenue","14.97"]
["content.21.adgroupName","BB6 Drones"]
["content.21.conversionRate","25.00"]
["content.22.keywordId","222222222222333"]
["content.22.campaignId","111111120000227"]
["content.22.adgroupId","111111120000227"]
["content.22.bid","0.20"]
["content.22.keywordText","weight charge charge damage"]
["content.22.matchType","broad"]
["content.22.campaignName","SP_M_KT - BB6 Drones"]
["content.22.state","enabled"]
["content.22.conversions","0"]
["content.22.reportDate","2020-03-09"]
["content.22.impressions","448"]
["content.22.clicks","2"]
["content.22.orders","0"]
["content.22.ctr","0.45"]
["content.22.averageCpc","0.39"]
["content.22.spend","0.78"]
["content.22.roas","0.00"]
["content.22.revenue","0.00"]
["content.22.adgroupName","BB6 Drones"]
["content.22.conversionRate","0.00"]
["content.23.keywordId","222222222222335"]
["content.23.campaignId","111111120000227"]
["content.23.adgroupId","111111120000227"]
["content.23.bid","0.70"]
["content.23.keywordText","camera Aerial Aerial Drone"]
["content.23.matchType","phrase"]
["content.23.campaignName","SP_M_KT - BB6 Drones"]
["content.23.state","enabled"]
["content.23.conversions","0"]
["content.23.reportDate","2020-03-09"]
["content.23.impressions","4"]
["content.23.clicks","1"]
["content.23.orders","0"]
["content.23.ctr","25.00"]
["content.23.averageCpc","0.41"]
["content.23.spend","0.41"]
["content.23.roas","0.00"]
["content.23.revenue","0.00"]
["content.23.adgroupName","BB6 Drones"]
["content.23.conversionRate","0.00"]
["content.24.keywordId","222222222222336"]
["content.24.campaignId","111111120000227"]
["content.24.adgroupId","111111120000227"]
["content.24.bid","0.25"]
["content.24.keywordText","legal battery battery weight"]
["content.24.matchType","phrase"]
["content.24.campaignName","SP_M_KT - BB6 Drones"]
["content.24.state","enabled"]
["content.24.conversions","0"]
["content.24.reportDate","2020-03-09"]
["content.24.impressions","28"]
["content.24.clicks","1"]
["content.24.orders","0"]
["content.24.ctr","3.57"]
["content.24.averageCpc","0.40"]
["content.24.spend","0.40"]
["content.24.roas","0.00"]
["content.24.revenue","0.00"]
["content.24.adgroupName","BB6 Drones"]
["content.24.conversionRate","0.00"]
["content.25.keywordId","222222222222339"]
["content.25.campaignId","111111120000227"]
["content.25.adgroupId","111111120000227"]
["content.25.bid","0.65"]
["content.25.keywordText","Drone height height Drone"]
["content.25.matchType","exact"]
["content.25.campaignName","SP_M_KT - BB6 Drones"]
["content.25.state","enabled"]
["content.25.conversions","0"]
["content.25.reportDate","2020-03-09"]
["content.25.impressions","48"]
["content.25.clicks","1"]
["content.25.orders","0"]
["content.25.ctr","2.08"]
["content.25.averageCpc","0.25"]
["content.25.spend","0.25"]
["content.25.roas","0.00"]
["content.25.revenue","0.00"]
["content.25.adgroupName","BB6 Drones"]
["content.25.conversionRate","0.00"]
["content.26.keywordId","222222222222354"]
["content.26.campaignId","111111120000227"]
["content.26.adgroupId","111111120000227"]
["content.26.bid","0.70"]
["content.26.keywordText","filters Drone Drone Wifi"]
["content.26.matchType","exact"]
["content.26.campaignName","SP_M_KT - BB6 Drones"]
["content.26.state","enabled"]
["content.26.conversions","0"]
["content.26.reportDate","2020-03-09"]
["content.26.impressions","27"]
["content.26.clicks","1"]
["content.26.orders","0"]
["content.26.ctr","3.70"]
["content.26.averageCpc","0.27"]
["content.26.spend","0.27"]
["content.26.roas","0.00"]
["content.26.revenue","0.00"]
["content.26.adgroupName","BB6 Drones"]
["content.26.conversionRate","0.00"]
["content.27.keywordId","222222222222362"]
["content.27.campaignId","111111120000227"]
["content.27.adgroupId","111111120000227"]
["content.27.bid","0.50"]
["content.27.keywordText","weight range range Wifi"]
["content.27.matchType","broad"]
["content.27.campaignName","SP_M_KT - BB6 Drones"]
["content.27.state","enabled"]
["content.27.conversions","0"]
["content.27.reportDate","2020-03-09"]
["content.27.impressions","318"]
["content.27.clicks","1"]
["content.27.orders","0"]
["content.27.ctr","0.31"]
["content.27.averageCpc","0.30"]
["content.27.spend","0.30"]
["content.27.roas","0.00"]
["content.27.revenue","0.00"]
["content.27.adgroupName","BB6 Drones"]
["content.27.conversionRate","0.00"]
["content.28.keywordId","222222222222369"]
["content.28.campaignId","111111120000233"]
["content.28.adgroupId","111111120000233"]
["content.28.bid","0.35"]
["content.28.keywordText","range legal range camera"]
["content.28.matchType","broad"]
["content.28.campaignName","SP_M_KT - D1 Drones"]
["content.28.state","enabled"]
["content.28.conversions","0"]
["content.28.reportDate","2020-03-09"]
["content.28.impressions","4"]
["content.28.clicks","2"]
["content.28.orders","0"]
["content.28.ctr","50.00"]
["content.28.averageCpc","0.60"]
["content.28.spend","1.20"]
["content.28.roas","0.00"]
["content.28.revenue","0.00"]
["content.28.adgroupName","D1 Drones"]
["content.28.conversionRate","0.00"]
["content.29.keywordId","222222222222376"]
["content.29.campaignId","111111120000233"]
["content.29.adgroupId","111111120000233"]
["content.29.bid","0.70"]
["content.29.keywordText","damage insurance damage camera"]
["content.29.matchType","phrase"]
["content.29.campaignName","SP_M_KT - D1 Drones"]
["content.29.state","enabled"]
["content.29.conversions","0"]
["content.29.reportDate","2020-03-09"]
["content.29.impressions","1"]
["content.29.clicks","1"]
["content.29.orders","0"]
["content.29.ctr","100.00"]
["content.29.averageCpc","0.04"]
["content.29.spend","0.04"]
["content.29.roas","0.00"]
["content.29.revenue","0.00"]
["content.29.adgroupName","D1 Drones"]
["content.29.conversionRate","0.00"]
["content.30.keywordId","222222222222377"]
["content.30.campaignId","111111120000233"]
["content.30.adgroupId","111111120000233"]
["content.30.bid","0.50"]
["content.30.keywordText","Drone Drone Drone Drone height range"]
["content.30.matchType","exact"]
["content.30.campaignName","SP_M_KT - D1 Drones"]
["content.30.state","enabled"]
["content.30.conversions","0"]
["content.30.reportDate","2020-03-09"]
["content.30.impressions","54"]
["content.30.clicks","1"]
["content.30.orders","0"]
["content.30.ctr","1.85"]
["content.30.averageCpc","0.39"]
["content.30.spend","0.39"]
["content.30.roas","0.00"]
["content.30.revenue","0.00"]
["content.30.adgroupName","D1 Drones"]
["content.30.conversionRate","0.00"]
["content.31.keywordId","222222222222383"]
["content.31.campaignId","111111120000233"]
["content.31.adgroupId","111111120000233"]
["content.31.bid","0.60"]
["content.31.keywordText","filters size filters charge"]
["content.31.matchType","phrase"]
["content.31.campaignName","SP_M_KT - D1 Drones"]
["content.31.state","enabled"]
["content.31.conversions","0"]
["content.31.reportDate","2020-03-09"]
["content.31.impressions","61"]
["content.31.clicks","2"]
["content.31.orders","0"]
["content.31.ctr","3.28"]
["content.31.averageCpc","0.55"]
["content.31.spend","1.09"]
["content.31.roas","0.00"]
["content.31.revenue","0.00"]
["content.31.adgroupName","D1 Drones"]
["content.31.conversionRate","0.00"]
["content.32.keywordId","222222222222392"]
["content.32.campaignId","111111120000233"]
["content.32.adgroupId","111111120000233"]
["content.32.bid","0.50"]
["content.32.keywordText","range legal range camera"]
["content.32.matchType","broad"]
["content.32.campaignName","SP_M_KT - D1 Drones"]
["content.32.state","enabled"]
["content.32.conversions","0"]
["content.32.reportDate","2020-03-09"]
["content.32.impressions","125"]
["content.32.clicks","2"]
["content.32.orders","0"]
["content.32.ctr","1.60"]
["content.32.averageCpc","0.65"]
["content.32.spend","1.30"]
["content.32.roas","0.00"]
["content.32.revenue","0.00"]
["content.32.adgroupName","D1 Drones"]
["content.32.conversionRate","0.00"]
["content.33.keywordId","222222222222398"]
["content.33.campaignId","111111120000233"]
["content.33.adgroupId","111111120000233"]
["content.33.bid","0.50"]
["content.33.keywordText","height Wifi height damage"]
["content.33.matchType","exact"]
["content.33.campaignName","SP_M_KT - D1 Drones"]
["content.33.state","enabled"]
["content.33.conversions","1"]
["content.33.reportDate","2020-03-09"]
["content.33.impressions","5"]
["content.33.clicks","1"]
["content.33.orders","0"]
["content.33.ctr","20.00"]
["content.33.averageCpc","0.29"]
["content.33.spend","0.29"]
["content.33.acos","1.06"]
["content.33.roas","94.76"]
["content.33.revenue","27.48"]
["content.33.adgroupName","D1 Drones"]
["content.33.conversionRate","100.00"]
["content.34.keywordId","222222222222408"]
["content.34.campaignId","111111120000233"]
["content.34.adgroupId","111111120000233"]
["content.34.bid","0.50"]
["content.34.keywordText","permission range permission Drone"]
["content.34.matchType","exact"]
["content.34.campaignName","SP_M_KT - D1 Drones"]
["content.34.state","enabled"]
["content.34.conversions","0"]
["content.34.reportDate","2020-03-09"]
["content.34.impressions","161"]
["content.34.clicks","1"]
["content.34.orders","0"]
["content.34.ctr","0.62"]
["content.34.averageCpc","0.75"]
["content.34.spend","0.75"]
["content.34.roas","0.00"]
["content.34.revenue","0.00"]
["content.34.adgroupName","D1 Drones"]
["content.34.conversionRate","0.00"]
["content.35.keywordId","222222222222414"]
["content.35.campaignId","111111120000233"]
["content.35.adgroupId","111111120000233"]
["content.35.bid","2.50"]
["content.35.keywordText","range weight range distance"]
["content.35.matchType","exact"]
["content.35.campaignName","SP_M_KT - D1 Drones"]
["content.35.state","enabled"]
["content.35.conversions","0"]
["content.35.reportDate","2020-03-09"]
["content.35.impressions","12"]
["content.35.clicks","4"]
["content.35.orders","0"]
["content.35.ctr","33.33"]
["content.35.averageCpc","0.71"]
["content.35.spend","2.82"]
["content.35.roas","0.00"]
["content.35.revenue","0.00"]
["content.35.adgroupName","D1 Drones"]
["content.35.conversionRate","0.00"]
["content.36.keywordId","222222222222416"]
["content.36.campaignId","111111120000233"]
["content.36.adgroupId","111111120000233"]
["content.36.bid","0.40"]
["content.36.keywordText","insurance filters insurance insurance"]
["content.36.matchType","exact"]
["content.36.campaignName","SP_M_KT - D1 Drones"]
["content.36.state","enabled"]
["content.36.conversions","0"]
["content.36.reportDate","2020-03-09"]
["content.36.impressions","15"]
["content.36.clicks","1"]
["content.36.orders","0"]
["content.36.ctr","6.67"]
["content.36.averageCpc","0.39"]
["content.36.spend","0.39"]
["content.36.roas","0.00"]
["content.36.revenue","0.00"]
["content.36.adgroupName","D1 Drones"]
["content.36.conversionRate","0.00"]
["content.37.keywordId","222222222222417"]
["content.37.campaignId","111111120000233"]
["content.37.adgroupId","111111120000233"]
["content.37.bid","0.50"]
["content.37.keywordText","damage size damage distance"]
["content.37.matchType","exact"]
["content.37.campaignName","SP_M_KT - D1 Drones"]
["content.37.state","enabled"]
["content.37.conversions","1"]
["content.37.reportDate","2020-03-09"]
["content.37.impressions","5"]
["content.37.clicks","2"]
["content.37.orders","0"]
["content.37.ctr","40.00"]
["content.37.averageCpc","0.64"]
["content.37.spend","1.28"]
["content.37.acos","4.60"]
["content.37.roas","21.73"]
["content.37.revenue","27.82"]
["content.37.adgroupName","D1 Drones"]
["content.37.conversionRate","50.00"]
["content.38.keywordId","222222222222419"]
["content.38.campaignId","111111120000233"]
["content.38.adgroupId","111111120000233"]
["content.38.bid","1.00"]
["content.38.keywordText","weight insurance weight height"]
["content.38.matchType","exact"]
["content.38.campaignName","SP_M_KT - D1 Drones"]
["content.38.state","enabled"]
["content.38.conversions","1"]
["content.38.reportDate","2020-03-09"]
["content.38.impressions","11"]
["content.38.clicks","2"]
["content.38.orders","0"]
["content.38.ctr","18.18"]
["content.38.averageCpc","0.31"]
["content.38.spend","0.61"]
["content.38.acos","1.14"]
["content.38.roas","87.97"]
["content.38.revenue","53.66"]
["content.38.adgroupName","D1 Drones"]
["content.38.conversionRate","50.00"]
["content.39.keywordId","222222222222425"]
["content.39.campaignId","111111120000233"]
["content.39.adgroupId","111111120000233"]
["content.39.bid","1.00"]
["content.39.keywordText","Drone range Drone Drone"]
["content.39.matchType","exact"]
["content.39.campaignName","SP_M_KT - D1 Drones"]
["content.39.state","enabled"]
["content.39.conversions","0"]
["content.39.reportDate","2020-03-09"]
["content.39.impressions","9"]
["content.39.clicks","1"]
["content.39.orders","0"]
["content.39.ctr","11.11"]
["content.39.averageCpc","0.31"]
["content.39.spend","0.31"]
["content.39.roas","0.00"]
["content.39.revenue","0.00"]
["content.39.adgroupName","D1 Drones"]
["content.39.conversionRate","0.00"]
["content.40.keywordId","222222222222434"]
["content.40.campaignId","111111120000233"]
["content.40.adgroupId","111111120000233"]
["content.40.bid","0.70"]
["content.40.keywordText","damage Drone damage height"]
["content.40.matchType","broad"]
["content.40.campaignName","SP_M_KT - D1 Drones"]
["content.40.state","enabled"]
["content.40.conversions","0"]
["content.40.reportDate","2020-03-09"]
["content.40.impressions","17"]
["content.40.clicks","1"]
["content.40.orders","0"]
["content.40.ctr","5.88"]
["content.40.averageCpc","1.03"]
["content.40.spend","1.03"]
["content.40.roas","0.00"]
["content.40.revenue","0.00"]
["content.40.adgroupName","D1 Drones"]
["content.40.conversionRate","0.00"]
["content.41.keywordId","222222222222437"]
["content.41.campaignId","111111120000233"]
["content.41.adgroupId","111111120000233"]
["content.41.bid","0.50"]
["content.41.keywordText","insurance filters insurance insurance"]
["content.41.matchType","exact"]
["content.41.campaignName","SP_M_KT - D1 Drones"]
["content.41.state","enabled"]
["content.41.conversions","0"]
["content.41.reportDate","2020-03-09"]
["content.41.impressions","2"]
["content.41.clicks","1"]
["content.41.orders","0"]
["content.41.ctr","50.00"]
["content.41.averageCpc","0.28"]
["content.41.spend","0.28"]
["content.41.roas","0.00"]
["content.41.revenue","0.00"]
["content.41.adgroupName","D1 Drones"]
["content.41.conversionRate","0.00"]
["content.42.keywordId","222222222222439"]
["content.42.campaignId","111111120000233"]
["content.42.adgroupId","111111120000233"]
["content.42.bid","0.50"]
["content.42.keywordText","permission insurance permission height"]
["content.42.matchType","exact"]
["content.42.campaignName","SP_M_KT - D1 Drones"]
["content.42.state","enabled"]
["content.42.conversions","0"]
["content.42.reportDate","2020-03-09"]
["content.42.impressions","5"]
["content.42.clicks","2"]
["content.42.orders","0"]
["content.42.ctr","40.00"]
["content.42.averageCpc","0.51"]
["content.42.spend","1.01"]
["content.42.roas","0.00"]
["content.42.revenue","0.00"]
["content.42.adgroupName","D1 Drones"]
["content.42.conversionRate","0.00"]
["content.43.keywordId","222222222222445"]
["content.43.campaignId","111111120000233"]
["content.43.adgroupId","111111120000233"]
["content.43.bid","0.50"]
["content.43.keywordText","permission permission permission charge"]
["content.43.matchType","broad"]
["content.43.campaignName","SP_M_KT - D1 Drones"]
["content.43.state","enabled"]
["content.43.conversions","0"]
["content.43.reportDate","2020-03-09"]
["content.43.impressions","2"]
["content.43.clicks","1"]
["content.43.orders","0"]
["content.43.ctr","50.00"]
["content.43.averageCpc","0.26"]
["content.43.spend","0.26"]
["content.43.roas","0.00"]
["content.43.revenue","0.00"]
["content.43.adgroupName","D1 Drones"]
["content.43.conversionRate","0.00"]
["content.44.keywordId","222222222222446"]
["content.44.campaignId","111111120000233"]
["content.44.adgroupId","111111120000233"]
["content.44.bid","2.50"]
["content.44.keywordText","Wifi height height charge"]
["content.44.matchType","exact"]
["content.44.campaignName","SP_M_KT - D1 Drones"]
["content.44.state","enabled"]
["content.44.conversions","0"]
["content.44.reportDate","2020-03-09"]
["content.44.impressions","2"]
["content.44.clicks","1"]
["content.44.orders","0"]
["content.44.ctr","50.00"]
["content.44.averageCpc","0.41"]
["content.44.spend","0.41"]
["content.44.roas","0.00"]
["content.44.revenue","0.00"]
["content.44.adgroupName","D1 Drones"]
["content.44.conversionRate","0.00"]
["content.45.keywordId","222222222222454"]
["content.45.campaignId","111111120000233"]
["content.45.adgroupId","111111120000233"]
["content.45.bid","2.50"]
["content.45.keywordText","size weight size distance"]
["content.45.matchType","exact"]
["content.45.campaignName","SP_M_KT - D1 Drones"]
["content.45.state","enabled"]
["content.45.conversions","0"]
["content.45.reportDate","2020-03-09"]
["content.45.impressions","3"]
["content.45.clicks","1"]
["content.45.orders","0"]
["content.45.ctr","33.33"]
["content.45.averageCpc","0.19"]
["content.45.spend","0.19"]
["content.45.roas","0.00"]
["content.45.revenue","0.00"]
["content.45.adgroupName","D1 Drones"]
["content.45.conversionRate","0.00"]
["content.46.keywordId","222222222222455"]
["content.46.campaignId","111111120000233"]
["content.46.adgroupId","111111120000233"]
["content.46.bid","0.50"]
["content.46.keywordText","camera weight camera damage"]
["content.46.matchType","exact"]
["content.46.campaignName","SP_M_KT - D1 Drones"]
["content.46.state","enabled"]
["content.46.conversions","0"]
["content.46.reportDate","2020-03-09"]
["content.46.impressions","5"]
["content.46.clicks","1"]
["content.46.orders","0"]
["content.46.ctr","20.00"]
["content.46.averageCpc","0.14"]
["content.46.spend","0.14"]
["content.46.roas","0.00"]
["content.46.revenue","0.00"]
["content.46.adgroupName","D1 Drones"]
["content.46.conversionRate","0.00"]
["content.47.keywordId","222222222222459"]
["content.47.campaignId","111111120000233"]
["content.47.adgroupId","111111120000233"]
["content.47.bid","0.50"]
["content.47.keywordText","legal Wifi legal damage"]
["content.47.matchType","exact"]
["content.47.campaignName","SP_M_KT - D1 Drones"]
["content.47.state","enabled"]
["content.47.conversions","0"]
["content.47.reportDate","2020-03-09"]
["content.47.impressions","3"]
["content.47.clicks","1"]
["content.47.orders","0"]
["content.47.ctr","33.33"]
["content.47.averageCpc","0.64"]
["content.47.spend","0.64"]
["content.47.roas","0.00"]
["content.47.revenue","0.00"]
["content.47.adgroupName","D1 Drones"]
["content.47.conversionRate","0.00"]
["content.48.keywordId","222222222222468"]
["content.48.campaignId","111111120000233"]
["content.48.adgroupId","111111120000233"]
["content.48.bid","0.50"]
["content.48.keywordText","insurance range insurance charge"]
["content.48.matchType","broad"]
["content.48.campaignName","SP_M_KT - D1 Drones"]
["content.48.state","enabled"]
["content.48.conversions","0"]
["content.48.reportDate","2020-03-09"]
["content.48.impressions","370"]
["content.48.clicks","4"]
["content.48.orders","0"]
["content.48.ctr","1.08"]
["content.48.averageCpc","0.32"]
["content.48.spend","1.28"]
["content.48.roas","0.00"]
["content.48.revenue","0.00"]
["content.48.adgroupName","D1 Drones"]
["content.48.conversionRate","0.00"]
["content.49.keywordId","222222222222473"]
["content.49.campaignId","111111120000233"]
["content.49.adgroupId","111111120000233"]
["content.49.bid","0.50"]
["content.49.keywordText","filters weight filters distance"]
["content.49.matchType","exact"]
["content.49.campaignName","SP_M_KT - D1 Drones"]
["content.49.state","enabled"]
["content.49.conversions","0"]
["content.49.reportDate","2020-03-09"]
["content.49.impressions","321"]
["content.49.clicks","2"]
["content.49.orders","0"]
["content.49.ctr","0.62"]
["content.49.averageCpc","0.42"]
["content.49.spend","0.83"]
["content.49.roas","0.00"]
["content.49.revenue","0.00"]
["content.49.adgroupName","D1 Drones"]
["content.49.conversionRate","0.00"]
["content.50.keywordId","222222222222478"]
["content.50.campaignId","111111120000233"]
["content.50.adgroupId","111111120000233"]
["content.50.bid","2.50"]
["content.50.keywordText","Wifi size Wifi Drone"]
["content.50.matchType","exact"]
["content.50.campaignName","SP_M_KT - D1 Drones"]
["content.50.state","enabled"]
["content.50.conversions","0"]
["content.50.reportDate","2020-03-09"]
["content.50.impressions","167"]
["content.50.clicks","1"]
["content.50.orders","0"]
["content.50.ctr","0.60"]
["content.50.averageCpc","0.39"]
["content.50.spend","0.39"]
["content.50.roas","0.00"]
["content.50.revenue","0.00"]
["content.50.adgroupName","D1 Drones"]
["content.50.conversionRate","0.00"]
["content.51.keywordId","222222222222479"]
["content.51.campaignId","111111120000233"]
["content.51.adgroupId","111111120000233"]
["content.51.bid","1.00"]
["content.51.keywordText","filters size filters charge"]
["content.51.matchType","phrase"]
["content.51.campaignName","SP_M_KT - D1 Drones"]
["content.51.state","enabled"]
["content.51.conversions","0"]
["content.51.reportDate","2020-03-09"]
["content.51.impressions","144"]
["content.51.clicks","1"]
["content.51.orders","0"]
["content.51.ctr","0.69"]
["content.51.averageCpc","0.41"]
["content.51.spend","0.41"]
["content.51.roas","0.00"]
["content.51.revenue","0.00"]
["content.51.adgroupName","D1 Drones"]
["content.51.conversionRate","0.00"]
["content.52.keywordId","222222222222480"]
["content.52.campaignId","111111120000233"]
["content.52.adgroupId","111111120000233"]
["content.52.bid","1.00"]
["content.52.keywordText","Drone size Drone charge"]
["content.52.matchType","phrase"]
["content.52.campaignName","SP_M_KT - D1 Drones"]
["content.52.state","enabled"]
["content.52.conversions","0"]
["content.52.reportDate","2020-03-09"]
["content.52.impressions","195"]
["content.52.clicks","2"]
["content.52.orders","0"]
["content.52.ctr","1.03"]
["content.52.averageCpc","0.45"]
["content.52.spend","0.90"]
["content.52.roas","0.00"]
["content.52.revenue","0.00"]
["content.52.adgroupName","D1 Drones"]
["content.52.conversionRate","0.00"]
["content.53.keywordId","222222222222481"]
["content.53.campaignId","111111120000233"]
["content.53.adgroupId","111111120000233"]
["content.53.bid","1.00"]
["content.53.keywordText","filters filters filters insurance"]
["content.53.matchType","exact"]
["content.53.campaignName","SP_M_KT - D1 Drones"]
["content.53.state","enabled"]
["content.53.conversions","0"]
["content.53.reportDate","2020-03-09"]
["content.53.impressions","372"]
["content.53.clicks","2"]
["content.53.orders","0"]
["content.53.ctr","0.54"]
["content.53.averageCpc","0.44"]
["content.53.spend","0.88"]
["content.53.roas","0.00"]
["content.53.revenue","0.00"]
["content.53.adgroupName","D1 Drones"]
["content.53.conversionRate","0.00"]
["content.54.keywordId","222222222222487"]
["content.54.campaignId","111111120000233"]
["content.54.adgroupId","111111120000233"]
["content.54.bid","0.50"]
["content.54.keywordText","size insurance size height"]
["content.54.matchType","exact"]
["content.54.campaignName","SP_M_KT - D1 Drones"]
["content.54.state","enabled"]
["content.54.conversions","0"]
["content.54.reportDate","2020-03-09"]
["content.54.impressions","296"]
["content.54.clicks","3"]
["content.54.orders","0"]
["content.54.ctr","1.01"]
["content.54.averageCpc","0.35"]
["content.54.spend","1.04"]
["content.54.roas","0.00"]
["content.54.revenue","0.00"]
["content.54.adgroupName","D1 Drones"]
["content.54.conversionRate","0.00"]
["content.55.keywordId","222222222222489"]
["content.55.campaignId","111111120000233"]
["content.55.adgroupId","111111120000233"]
["content.55.bid","0.50"]
["content.55.keywordText","range filters range insurance"]
["content.55.matchType","exact"]
["content.55.campaignName","SP_M_KT - D1 Drones"]
["content.55.state","enabled"]
["content.55.conversions","0"]
["content.55.reportDate","2020-03-09"]
["content.55.impressions","371"]
["content.55.clicks","4"]
["content.55.orders","0"]
["content.55.ctr","1.08"]
["content.55.averageCpc","0.28"]
["content.55.spend","1.11"]
["content.55.roas","0.00"]
["content.55.revenue","0.00"]
["content.55.adgroupName","D1 Drones"]
["content.55.conversionRate","0.00"]
["content.56.keywordId","222222222222490"]
["content.56.campaignId","111111120000233"]
["content.56.adgroupId","111111120000233"]
["content.56.bid","0.50"]
["content.56.keywordText","battery weight battery distance"]
["content.56.matchType","exact"]
["content.56.campaignName","SP_M_KT - D1 Drones"]
["content.56.state","enabled"]
["content.56.conversions","0"]
["content.56.reportDate","2020-03-09"]
["content.56.impressions","733"]
["content.56.clicks","4"]
["content.56.orders","0"]
["content.56.ctr","0.55"]
["content.56.averageCpc","0.29"]
["content.56.spend","1.16"]
["content.56.roas","0.00"]
["content.56.revenue","0.00"]
["content.56.adgroupName","D1 Drones"]
["content.56.conversionRate","0.00"]
["content.57.keywordId","222222222222491"]
["content.57.campaignId","111111120000233"]
["content.57.adgroupId","111111120000233"]
["content.57.bid","0.50"]
["content.57.keywordText","permission filters permission insurance"]
["content.57.matchType","exact"]
["content.57.campaignName","SP_M_KT - D1 Drones"]
["content.57.state","enabled"]
["content.57.conversions","0"]
["content.57.reportDate","2020-03-09"]
["content.57.impressions","151"]
["content.57.clicks","1"]
["content.57.orders","0"]
["content.57.ctr","0.66"]
["content.57.averageCpc","0.30"]
["content.57.spend","0.30"]
["content.57.roas","0.00"]
["content.57.revenue","0.00"]
["content.57.adgroupName","D1 Drones"]
["content.57.conversionRate","0.00"]
["content.58.keywordId","222222222222495"]
["content.58.campaignId","111111120000233"]
["content.58.adgroupId","111111120000233"]
["content.58.bid","0.50"]
["content.58.keywordText","legal legal legal filters"]
["content.58.matchType","exact"]
["content.58.campaignName","SP_M_KT - D1 Drones"]
["content.58.state","enabled"]
["content.58.conversions","0"]
["content.58.reportDate","2020-03-09"]
["content.58.impressions","5"]
["content.58.clicks","1"]
["content.58.orders","0"]
["content.58.ctr","20.00"]
["content.58.averageCpc","0.09"]
["content.58.spend","0.09"]
["content.58.roas","0.00"]
["content.58.revenue","0.00"]
["content.58.adgroupName","D1 Drones"]
["content.58.conversionRate","0.00"]
["content.59.keywordId","222222222222501"]
["content.59.campaignId","111111120000245"]
["content.59.adgroupId","111111120000245"]
["content.59.bid","2.00"]
["content.59.keywordText","legal camera legal camera insurance size"]
["content.59.matchType","exact"]
["content.59.campaignName","SP_M_KT - D7 Quad C Drones"]
["content.59.state","enabled"]
["content.59.conversions","0"]
["content.59.reportDate","2020-03-09"]
["content.59.impressions","354"]
["content.59.clicks","3"]
["content.59.orders","0"]
["content.59.ctr","0.85"]
["content.59.averageCpc","0.26"]
["content.59.spend","0.79"]
["content.59.roas","0.00"]
["content.59.revenue","0.00"]
["content.59.adgroupName","D7 Drones"]
["content.59.conversionRate","0.00"]
["content.60.keywordId","222222222222507"]
["content.60.campaignId","111111120000245"]
["content.60.adgroupId","111111120000245"]
["content.60.bid","2.00"]
["content.60.keywordText","range camera range camera insurance Wifi"]
["content.60.matchType","exact"]
["content.60.campaignName","SP_M_KT - D7 Quad C Drones"]
["content.60.state","enabled"]
["content.60.conversions","0"]
["content.60.reportDate","2020-03-09"]
["content.60.impressions","13"]
["content.60.clicks","1"]
["content.60.orders","0"]
["content.60.ctr","7.69"]
["content.60.averageCpc","0.27"]
["content.60.spend","0.27"]
["content.60.roas","0.00"]
["content.60.revenue","0.00"]
["content.60.adgroupName","D7 Drones"]
["content.60.conversionRate","0.00"]
["content.61.keywordId","222222222222509"]
["content.61.campaignId","111111120000245"]
["content.61.adgroupId","111111120000245"]
["content.61.bid","0.50"]
["content.61.keywordText","size camera size camera insurance permission"]
["content.61.matchType","exact"]
["content.61.campaignName","SP_M_KT - D7 Quad C Drones"]
["content.61.state","enabled"]
["content.61.conversions","0"]
["content.61.reportDate","2020-03-09"]
["content.61.impressions","12"]
["content.61.clicks","1"]
["content.61.orders","0"]
["content.61.ctr","8.33"]
["content.61.averageCpc","0.23"]
["content.61.spend","0.23"]
["content.61.roas","0.00"]
["content.61.revenue","0.00"]
["content.61.adgroupName","D7 Drones"]
["content.61.conversionRate","0.00"]
["content.62.keywordId","222222222222514"]
["content.62.campaignId","111111120000245"]
["content.62.adgroupId","111111120000245"]
["content.62.bid","0.50"]
["content.62.keywordText","distance distance distance distance height camera"]
["content.62.matchType","phrase"]
["content.62.campaignName","SP_M_KT - D7 Quad C Drones"]
["content.62.state","enabled"]
["content.62.conversions","0"]
["content.62.reportDate","2020-03-09"]
["content.62.impressions","1"]
["content.62.clicks","1"]
["content.62.orders","0"]
["content.62.ctr","100.00"]
["content.62.averageCpc","0.23"]
["content.62.spend","0.23"]
["content.62.roas","0.00"]
["content.62.revenue","0.00"]
["content.62.adgroupName","D7 Drones"]
["content.62.conversionRate","0.00"]
["content.63.keywordId","222222222222517"]
["content.63.campaignId","111111120000252"]
["content.63.adgroupId","111111120000252"]
["content.63.bid","0.50"]
["content.63.keywordText","Wifi permission Wifi range"]
["content.63.matchType","broad"]
["content.63.campaignName","SP_M_KT - DD10 Quad Drones"]
["content.63.state","enabled"]
["content.63.conversions","0"]
["content.63.reportDate","2020-03-09"]
["content.63.impressions","987"]
["content.63.clicks","2"]
["content.63.orders","0"]
["content.63.ctr","0.20"]
["content.63.averageCpc","0.20"]
["content.63.spend","0.39"]
["content.63.roas","0.00"]
["content.63.revenue","0.00"]
["content.63.adgroupName","DD10 Drones"]
["content.63.conversionRate","0.00"]
["content.64.keywordId","222222222222519"]
["content.64.campaignId","111111120000252"]
["content.64.adgroupId","111111120000252"]
["content.64.bid","0.50"]
["content.64.keywordText","camera size camera Drone"]
["content.64.matchType","exact"]
["content.64.campaignName","SP_M_KT - DD10 Quad Drones"]
["content.64.state","enabled"]
["content.64.conversions","0"]
["content.64.reportDate","2020-03-09"]
["content.64.impressions","243"]
["content.64.clicks","4"]
["content.64.orders","0"]
["content.64.ctr","1.65"]
["content.64.averageCpc","0.51"]
["content.64.spend","2.04"]
["content.64.roas","0.00"]
["content.64.revenue","0.00"]
["content.64.adgroupName","DD10 Drones"]
["content.64.conversionRate","0.00"]
["content.65.keywordId","222222222222523"]
["content.65.campaignId","111111120000252"]
["content.65.adgroupId","111111120000252"]
["content.65.bid","0.50"]
["content.65.keywordText","camera range camera Drone"]
["content.65.matchType","exact"]
["content.65.campaignName","SP_M_KT - DD10 Quad Drones"]
["content.65.state","enabled"]
["content.65.conversions","0"]
["content.65.reportDate","2020-03-09"]
["content.65.impressions","1737"]
["content.65.clicks","2"]
["content.65.orders","0"]
["content.65.ctr","0.12"]
["content.65.averageCpc","0.51"]
["content.65.spend","1.02"]
["content.65.roas","0.00"]
["content.65.revenue","0.00"]
["content.65.adgroupName","DD10 Drones"]
["content.65.conversionRate","0.00"]
["content.66.keywordId","222222222222524"]
["content.66.campaignId","111111120000252"]
["content.66.adgroupId","111111120000252"]
["content.66.bid","1.00"]
["content.66.keywordText","Aerial size Aerial height"]
["content.66.matchType","exact"]
["content.66.campaignName","SP_M_KT - DD10 Quad Drones"]
["content.66.state","enabled"]
["content.66.conversions","0"]
["content.66.reportDate","2020-03-09"]
["content.66.impressions","119"]
["content.66.clicks","1"]
["content.66.orders","0"]
["content.66.ctr","0.84"]
["content.66.averageCpc","0.35"]
["content.66.spend","0.35"]
["content.66.roas","0.00"]
["content.66.revenue","0.00"]
["content.66.adgroupName","DD10 Drones"]
["content.66.conversionRate","0.00"]
["content.67.keywordId","222222222222525"]
["content.67.campaignId","111111120000252"]
["content.67.adgroupId","111111120000252"]
["content.67.bid","1.00"]
["content.67.keywordText","Aerial distance Aerial insurance"]
["content.67.matchType","exact"]
["content.67.campaignName","SP_M_KT - DD10 Quad Drones"]
["content.67.state","enabled"]
["content.67.conversions","0"]
["content.67.reportDate","2020-03-09"]
["content.67.impressions","101"]
["content.67.clicks","2"]
["content.67.orders","0"]
["content.67.ctr","1.98"]
["content.67.averageCpc","0.72"]
["content.67.spend","1.43"]
["content.67.roas","0.00"]
["content.67.revenue","0.00"]
["content.67.adgroupName","DD10 Drones"]
["content.67.conversionRate","0.00"]
["content.68.keywordId","222222222222526"]
["content.68.campaignId","111111120000252"]
["content.68.adgroupId","111111120000252"]
["content.68.bid","0.50"]
["content.68.keywordText","distance range distance legal"]
["content.68.matchType","exact"]
["content.68.campaignName","SP_M_KT - DD10 Quad Drones"]
["content.68.state","enabled"]
["content.68.conversions","0"]
["content.68.reportDate","2020-03-09"]
["content.68.impressions","2026"]
["content.68.clicks","3"]
["content.68.orders","0"]
["content.68.ctr","0.15"]
["content.68.averageCpc","0.54"]
["content.68.spend","1.63"]
["content.68.roas","0.00"]
["content.68.revenue","0.00"]
["content.68.adgroupName","DD10 Drones"]
["content.68.conversionRate","0.00"]
["content.69.keywordId","222222222222540"]
["content.69.campaignId","111111120000252"]
["content.69.adgroupId","111111120000252"]
["content.69.bid","0.35"]
["content.69.keywordText","damage height damage Wifi"]
["content.69.matchType","phrase"]
["content.69.campaignName","SP_M_KT - DD10 Quad Drones"]
["content.69.state","enabled"]
["content.69.conversions","0"]
["content.69.reportDate","2020-03-09"]
["content.69.impressions","176"]
["content.69.clicks","1"]
["content.69.orders","0"]
["content.69.ctr","0.57"]
["content.69.averageCpc","0.48"]
["content.69.spend","0.48"]
["content.69.roas","0.00"]
["content.69.revenue","0.00"]
["content.69.adgroupName","DD10 Drones"]
["content.69.conversionRate","0.00"]
["content.70.keywordId","222222222222544"]
["content.70.campaignId","111111120000252"]
["content.70.adgroupId","111111120000252"]
["content.70.bid","0.50"]
["content.70.keywordText","Drone Drone Drone size"]
["content.70.matchType","broad"]
["content.70.campaignName","SP_M_KT - DD10 Quad Drones"]
["content.70.state","enabled"]
["content.70.conversions","1"]
["content.70.reportDate","2020-03-09"]
["content.70.impressions","177"]
["content.70.clicks","4"]
["content.70.orders","0"]
["content.70.ctr","2.26"]
["content.70.averageCpc","0.58"]
["content.70.spend","2.31"]
["content.70.acos","10.05"]
["content.70.roas","9.95"]
["content.70.revenue","22.98"]
["content.70.adgroupName","DD10 Drones"]
["content.70.conversionRate","25.00"]
["content.71.keywordId","222222222222552"]
["content.71.campaignId","111111120000252"]
["content.71.adgroupId","111111120000252"]
["content.71.bid","1.00"]
["content.71.keywordText","Aerial range Aerial height"]
["content.71.matchType","exact"]
["content.71.campaignName","SP_M_KT - DD10 Quad Drones"]
["content.71.state","enabled"]
["content.71.conversions","0"]
["content.71.reportDate","2020-03-09"]
["content.71.impressions","218"]
["content.71.clicks","2"]
["content.71.orders","0"]
["content.71.ctr","0.92"]
["content.71.averageCpc","0.43"]
["content.71.spend","0.86"]
["content.71.roas","0.00"]
["content.71.revenue","0.00"]
["content.71.adgroupName","DD10 Drones"]
["content.71.conversionRate","0.00"]
["content.72.keywordId","222222222222554"]
["content.72.campaignId","111111120000252"]
["content.72.adgroupId","111111120000252"]
["content.72.bid","0.50"]
["content.72.keywordText","Aerial camera Aerial insurance"]
["content.72.matchType","exact"]
["content.72.campaignName","SP_M_KT - DD10 Quad Drones"]
["content.72.state","enabled"]
["content.72.conversions","0"]
["content.72.reportDate","2020-03-09"]
["content.72.impressions","144"]
["content.72.clicks","1"]
["content.72.orders","0"]
["content.72.ctr","0.69"]
["content.72.averageCpc","0.59"]
["content.72.spend","0.59"]
["content.72.roas","0.00"]
["content.72.revenue","0.00"]
["content.72.adgroupName","DD10 Drones"]
["content.72.conversionRate","0.00"]
["content.73.keywordId","222222222222556"]
["content.73.campaignId","111111120000252"]
["content.73.adgroupId","111111120000252"]
["content.73.bid","0.80"]
["content.73.keywordText","weight camera weight permission"]
["content.73.matchType","exact"]
["content.73.campaignName","SP_M_KT - DD10 Quad Drones"]
["content.73.state","enabled"]
["content.73.conversions","0"]
["content.73.reportDate","2020-03-09"]
["content.73.impressions","94"]
["content.73.clicks","1"]
["content.73.orders","0"]
["content.73.ctr","1.06"]
["content.73.averageCpc","0.19"]
["content.73.spend","0.19"]
["content.73.roas","0.00"]
["content.73.revenue","0.00"]
["content.73.adgroupName","DD10 Drones"]
["content.73.conversionRate","0.00"]
["content.74.keywordId","222222222222558"]
["content.74.campaignId","111111120000252"]
["content.74.adgroupId","111111120000252"]
["content.74.bid","1.10"]
["content.74.keywordText","Aerial legal Aerial insurance"]
["content.74.matchType","exact"]
["content.74.campaignName","SP_M_KT - DD10 Quad Drones"]
["content.74.state","enabled"]
["content.74.conversions","0"]
["content.74.reportDate","2020-03-09"]
["content.74.impressions","48"]
["content.74.clicks","2"]
["content.74.orders","0"]
["content.74.ctr","4.17"]
["content.74.averageCpc","0.31"]
["content.74.spend","0.62"]
["content.74.roas","0.00"]
["content.74.revenue","0.00"]
["content.74.adgroupName","DD10 Drones"]
["content.74.conversionRate","0.00"]
["content.75.keywordId","222222222222568"]
["content.75.campaignId","111111120000252"]
["content.75.adgroupId","111111120000252"]
["content.75.bid","1.60"]
["content.75.keywordText","filters charge filters permission"]
["content.75.matchType","phrase"]
["content.75.campaignName","SP_M_KT - DD10 Quad Drones"]
["content.75.state","enabled"]
["content.75.conversions","0"]
["content.75.reportDate","2020-03-09"]
["content.75.impressions","6"]
["content.75.clicks","1"]
["content.75.orders","0"]
["content.75.ctr","16.67"]
["content.75.averageCpc","0.34"]
["content.75.spend","0.34"]
["content.75.roas","0.00"]
["content.75.revenue","0.00"]
["content.75.adgroupName","DD10 Drones"]
["content.75.conversionRate","0.00"]
["content.76.keywordId","222222222222570"]
["content.76.campaignId","111111120000252"]
["content.76.adgroupId","111111120000252"]
["content.76.bid","1.60"]
["content.76.keywordText","damage charge damage permission"]
["content.76.matchType","phrase"]
["content.76.campaignName","SP_M_KT - DD10 Quad Drones"]
["content.76.state","enabled"]
["content.76.conversions","0"]
["content.76.reportDate","2020-03-09"]
["content.76.impressions","8"]
["content.76.clicks","1"]
["content.76.orders","0"]
["content.76.ctr","12.50"]
["content.76.averageCpc","0.36"]
["content.76.spend","0.36"]
["content.76.roas","0.00"]
["content.76.revenue","0.00"]
["content.76.adgroupName","DD10 Drones"]
["content.76.conversionRate","0.00"]
["content.77.keywordId","222222222222576"]
["content.77.campaignId","111111120000252"]
["content.77.adgroupId","111111120000252"]
["content.77.bid","0.63"]
["content.77.keywordText","Aerial height Aerial insurance"]
["content.77.matchType","exact"]
["content.77.campaignName","SP_M_KT - DD10 Quad Drones"]
["content.77.state","enabled"]
["content.77.conversions","0"]
["content.77.reportDate","2020-03-09"]
["content.77.impressions","37"]
["content.77.clicks","1"]
["content.77.orders","0"]
["content.77.ctr","2.70"]
["content.77.averageCpc","0.42"]
["content.77.spend","0.42"]
["content.77.roas","0.00"]
["content.77.revenue","0.00"]
["content.77.adgroupName","DD10 Drones"]
["content.77.conversionRate","0.00"]
["content.78.keywordId","222222222222580"]
["content.78.campaignId","111111120000252"]
["content.78.adgroupId","111111120000252"]
["content.78.bid","1.50"]
["content.78.keywordText","Aerial Wifi Aerial"]
["content.78.matchType","phrase"]
["content.78.campaignName","SP_M_KT - DD10 Quad Drones"]
["content.78.state","enabled"]
["content.78.conversions","0"]
["content.78.reportDate","2020-03-09"]
["content.78.impressions","22"]
["content.78.clicks","1"]
["content.78.orders","0"]
["content.78.ctr","4.55"]
["content.78.averageCpc","0.38"]
["content.78.spend","0.38"]
["content.78.roas","0.00"]
["content.78.revenue","0.00"]
["content.78.adgroupName","DD10 Drones"]
["content.78.conversionRate","0.00"]
["content.79.keywordId","222222222222585"]
["content.79.campaignId","111111120000252"]
["content.79.adgroupId","111111120000252"]
["content.79.bid","1.00"]
["content.79.keywordText","height battery height legal"]
["content.79.matchType","phrase"]
["content.79.campaignName","SP_M_KT - DD10 Quad Drones"]
["content.79.state","enabled"]
["content.79.conversions","0"]
["content.79.reportDate","2020-03-09"]
["content.79.impressions","46"]
["content.79.clicks","1"]
["content.79.orders","0"]
["content.79.ctr","2.17"]
["content.79.averageCpc","0.51"]
["content.79.spend","0.51"]
["content.79.roas","0.00"]
["content.79.revenue","0.00"]
["content.79.adgroupName","DD10 Drones"]
["content.79.conversionRate","0.00"]
["content.80.keywordId","222222222222587"]
["content.80.campaignId","111111120000252"]
["content.80.adgroupId","111111120000252"]
["content.80.bid","0.37"]
["content.80.keywordText","charge legal charge weight"]
["content.80.matchType","exact"]
["content.80.campaignName","SP_M_KT - DD10 Quad Drones"]
["content.80.state","enabled"]
["content.80.conversions","0"]
["content.80.reportDate","2020-03-09"]
["content.80.impressions","43"]
["content.80.clicks","1"]
["content.80.orders","0"]
["content.80.ctr","2.33"]
["content.80.averageCpc","0.46"]
["content.80.spend","0.46"]
["content.80.roas","0.00"]
["content.80.revenue","0.00"]
["content.80.adgroupName","DD10 Drones"]
["content.80.conversionRate","0.00"]
["content.81.keywordId","222222222222592"]
["content.81.campaignId","111111120000252"]
["content.81.adgroupId","111111120000252"]
["content.81.bid","0.80"]
["content.81.keywordText","distance distance distance range"]
["content.81.matchType","exact"]
["content.81.campaignName","SP_M_KT - DD10 Quad Drones"]
["content.81.state","enabled"]
["content.81.conversions","0"]
["content.81.reportDate","2020-03-09"]
["content.81.impressions","33"]
["content.81.clicks","1"]
["content.81.orders","0"]
["content.81.ctr","3.03"]
["content.81.averageCpc","0.31"]
["content.81.spend","0.31"]
["content.81.roas","0.00"]
["content.81.revenue","0.00"]
["content.81.adgroupName","DD10 Drones"]
["content.81.conversionRate","0.00"]
["content.82.keywordId","222222222222603"]
["content.82.campaignId","111111120000252"]
["content.82.adgroupId","111111120000252"]
["content.82.bid","0.60"]
["content.82.keywordText","weight insurance weight Wifi"]
["content.82.matchType","exact"]
["content.82.campaignName","SP_M_KT - DD10 Quad Drones"]
["content.82.state","enabled"]
["content.82.conversions","0"]
["content.82.reportDate","2020-03-09"]
["content.82.impressions","161"]
["content.82.clicks","1"]
["content.82.orders","0"]
["content.82.ctr","0.62"]
["content.82.averageCpc","0.18"]
["content.82.spend","0.18"]
["content.82.roas","0.00"]
["content.82.revenue","0.00"]
["content.82.adgroupName","DD10 Drones"]
["content.82.conversionRate","0.00"]
["content.83.keywordId","222222222222604"]
["content.83.campaignId","111111120000252"]
["content.83.adgroupId","111111120000252"]
["content.83.bid","0.80"]
["content.83.keywordText","Wifi damage Wifi range"]
["content.83.matchType","exact"]
["content.83.campaignName","SP_M_KT - DD10 Quad Drones"]
["content.83.state","enabled"]
["content.83.conversions","0"]
["content.83.reportDate","2020-03-09"]
["content.83.impressions","3"]
["content.83.clicks","1"]
["content.83.orders","0"]
["content.83.ctr","33.33"]
["content.83.averageCpc","0.52"]
["content.83.spend","0.52"]
["content.83.roas","0.00"]
["content.83.revenue","0.00"]
["content.83.adgroupName","DD10 Drones"]
["content.83.conversionRate","0.00"]
["content.84.keywordId","222222222222605"]
["content.84.campaignId","111111120000252"]
["content.84.adgroupId","111111120000252"]
["content.84.bid","0.50"]
["content.84.keywordText","insurance Drone"]
["content.84.matchType","broad"]
["content.84.campaignName","SP_M_KT - DD10 Quad Drones"]
["content.84.state","enabled"]
["content.84.conversions","1"]
["content.84.reportDate","2020-03-09"]
["content.84.impressions","42"]
["content.84.clicks","1"]
["content.84.orders","0"]
["content.84.ctr","2.38"]
["content.84.averageCpc","0.73"]
["content.84.spend","0.73"]
["content.84.acos","3.88"]
["content.84.roas","25.77"]
["content.84.revenue","18.81"]
["content.84.adgroupName","DD10 Drones"]
["content.84.conversionRate","100.00"]
["content.85.keywordId","222222222222606"]
["content.85.campaignId","111111120000252"]
["content.85.adgroupId","111111120000252"]
["content.85.bid","0.60"]
["content.85.keywordText","distance distance distance range"]
["content.85.matchType","exact"]
["content.85.campaignName","SP_M_KT - DD10 Quad Drones"]
["content.85.state","enabled"]
["content.85.conversions","0"]
["content.85.reportDate","2020-03-09"]
["content.85.impressions","31"]
["content.85.clicks","1"]
["content.85.orders","0"]
["content.85.ctr","3.23"]
["content.85.averageCpc","0.73"]
["content.85.spend","0.73"]
["content.85.roas","0.00"]
["content.85.revenue","0.00"]
["content.85.adgroupName","DD10 Drones"]
["content.85.conversionRate","0.00"]
["content.86.keywordId","222222222222610"]
["content.86.campaignId","111111120000252"]
["content.86.adgroupId","111111120000252"]
["content.86.bid","1.60"]
["content.86.keywordText","distance Drone"]
["content.86.matchType","broad"]
["content.86.campaignName","SP_M_KT - DD10 Quad Drones"]
["content.86.state","enabled"]
["content.86.conversions","1"]
["content.86.reportDate","2020-03-09"]
["content.86.impressions","1"]
["content.86.clicks","1"]
["content.86.orders","0"]
["content.86.ctr","100.00"]
["content.86.averageCpc","0.17"]
["content.86.spend","0.17"]
["content.86.acos","0.81"]
["content.86.roas","123.59"]
["content.86.revenue","21.01"]
["content.86.adgroupName","DD10 Drones"]
["content.86.conversionRate","100.00"]
["content.87.keywordId","222222222222613"]
["content.87.campaignId","111111120000252"]
["content.87.adgroupId","111111120000252"]
["content.87.bid","0.25"]
["content.87.keywordText","battery legal battery weight"]
["content.87.matchType","broad"]
["content.87.campaignName","SP_M_KT - DD10 Quad Drones"]
["content.87.state","enabled"]
["content.87.conversions","0"]
["content.87.reportDate","2020-03-09"]
["content.87.impressions","735"]
["content.87.clicks","1"]
["content.87.orders","0"]
["content.87.ctr","0.14"]
["content.87.averageCpc","0.71"]
["content.87.spend","0.71"]
["content.87.roas","0.00"]
["content.87.revenue","0.00"]
["content.87.adgroupName","DD10 Drones"]
["content.87.conversionRate","0.00"]
["content.88.keywordId","222222222222626"]
["content.88.campaignId","111111120000252"]
["content.88.adgroupId","111111120000252"]
["content.88.bid","1.00"]
["content.88.keywordText","Aerial damage Aerial filters"]
["content.88.matchType","exact"]
["content.88.campaignName","SP_M_KT - DD10 Quad Drones"]
["content.88.state","enabled"]
["content.88.conversions","0"]
["content.88.reportDate","2020-03-09"]
["content.88.impressions","134"]
["content.88.clicks","1"]
["content.88.orders","0"]
["content.88.ctr","0.75"]
["content.88.averageCpc","0.69"]
["content.88.spend","0.69"]
["content.88.roas","0.00"]
["content.88.revenue","0.00"]
["content.88.adgroupName","DD10 Drones"]
["content.88.conversionRate","0.00"]
["content.89.keywordId","222222222222630"]
["content.89.campaignId","111111120000252"]
["content.89.adgroupId","111111120000252"]
["content.89.bid","0.50"]
["content.89.keywordText","permission range permission insurance"]
["content.89.matchType","broad"]
["content.89.campaignName","SP_M_KT - DD10 Quad Drones"]
["content.89.state","enabled"]
["content.89.conversions","0"]
["content.89.reportDate","2020-03-09"]
["content.89.impressions","441"]
["content.89.clicks","1"]
["content.89.orders","0"]
["content.89.ctr","0.23"]
["content.89.averageCpc","0.83"]
["content.89.spend","0.83"]
["content.89.roas","0.00"]
["content.89.revenue","0.00"]
["content.89.adgroupName","DD10 Drones"]
["content.89.conversionRate","0.00"]
["content.90.keywordId","222222222222636"]
["content.90.campaignId","111111120000252"]
["content.90.adgroupId","111111120000252"]
["content.90.bid","0.50"]
["content.90.keywordText","camera height camera Drone"]
["content.90.matchType","exact"]
["content.90.campaignName","SP_M_KT - DD10 Quad Drones"]
["content.90.state","enabled"]
["content.90.conversions","1"]
["content.90.reportDate","2020-03-09"]
["content.90.impressions","69"]
["content.90.clicks","1"]
["content.90.orders","0"]
["content.90.ctr","1.45"]
["content.90.averageCpc","0.75"]
["content.90.spend","0.75"]
["content.90.acos","7.15"]
["content.90.roas","13.99"]
["content.90.revenue","10.49"]
["content.90.adgroupName","DD10 Drones"]
["content.90.conversionRate","100.00"]
["content.91.keywordId","222222222222638"]
["content.91.campaignId","111111120000252"]
["content.91.adgroupId","111111120000252"]
["content.91.bid","0.35"]
["content.91.keywordText","size filters size weight"]
["content.91.matchType","phrase"]
["content.91.campaignName","SP_M_KT - DD10 Quad Drones"]
["content.91.state","enabled"]
["content.91.conversions","0"]
["content.91.reportDate","2020-03-09"]
["content.91.impressions","36"]
["content.91.clicks","1"]
["content.91.orders","0"]
["content.91.ctr","2.78"]
["content.91.averageCpc","0.83"]
["content.91.spend","0.83"]
["content.91.roas","0.00"]
["content.91.revenue","0.00"]
["content.91.adgroupName","DD10 Drones"]
["content.91.conversionRate","0.00"]
["content.92.keywordId","222222222222652"]
["content.92.campaignId","111111120000256"]
["content.92.adgroupId","111111120000256"]
["content.92.bid","0.35"]
["content.92.keywordText","permission filters insurance"]
["content.92.matchType","phrase"]
["content.92.campaignName","SP_M_KT - DD2 Drones"]
["content.92.state","enabled"]
["content.92.conversions","0"]
["content.92.reportDate","2020-03-09"]
["content.92.impressions","176"]
["content.92.clicks","1"]
["content.92.orders","0"]
["content.92.ctr","0.57"]
["content.92.averageCpc","0.51"]
["content.92.spend","0.51"]
["content.92.roas","0.00"]
["content.92.revenue","0.00"]
["content.92.adgroupName","DD2 Drones"]
["content.92.conversionRate","0.00"]
["content.93.keywordId","222222222222656"]
["content.93.campaignId","111111120000258"]
["content.93.adgroupId","111111120000258"]
["content.93.bid","0.50"]
["content.93.keywordText","charge distance charge distance"]
["content.93.matchType","exact"]
["content.93.campaignName","SP_M_KT - DD3 Drones"]
["content.93.state","enabled"]
["content.93.conversions","0"]
["content.93.reportDate","2020-03-09"]
["content.93.impressions","157"]
["content.93.clicks","1"]
["content.93.orders","0"]
["content.93.ctr","0.64"]
["content.93.averageCpc","0.79"]
["content.93.spend","0.79"]
["content.93.roas","0.00"]
["content.93.revenue","0.00"]
["content.93.adgroupName","DD3 Drones"]
["content.93.conversionRate","0.00"]
["content.94.keywordId","222222222222657"]
["content.94.campaignId","111111120000258"]
["content.94.adgroupId","111111120000258"]
["content.94.bid","0.63"]
["content.94.keywordText","range damage range damage"]
["content.94.matchType","exact"]
["content.94.campaignName","SP_M_KT - DD3 Drones"]
["content.94.state","enabled"]
["content.94.conversions","0"]
["content.94.reportDate","2020-03-09"]
["content.94.impressions","148"]
["content.94.clicks","1"]
["content.94.orders","0"]
["content.94.ctr","0.68"]
["content.94.averageCpc","0.82"]
["content.94.spend","0.82"]
["content.94.roas","0.00"]
["content.94.revenue","0.00"]
["content.94.adgroupName","DD3 Drones"]
["content.94.conversionRate","0.00"]
["content.95.keywordId","222222222222658"]
["content.95.campaignId","111111120000258"]
["content.95.adgroupId","111111120000258"]
["content.95.bid","0.55"]
["content.95.keywordText","battery camera battery camera"]
["content.95.matchType","exact"]
["content.95.campaignName","SP_M_KT - DD3 Drones"]
["content.95.state","enabled"]
["content.95.conversions","1"]
["content.95.reportDate","2020-03-09"]
["content.95.impressions","19"]
["content.95.clicks","1"]
["content.95.orders","0"]
["content.95.ctr","5.26"]
["content.95.averageCpc","0.72"]
["content.95.spend","0.72"]
["content.95.acos","6.86"]
["content.95.roas","14.57"]
["content.95.revenue","10.49"]
["content.95.adgroupName","DD3 Drones"]
["content.95.conversionRate","100.00"]
["content.96.keywordId","222222222222659"]
["content.96.campaignId","111111120000258"]
["content.96.adgroupId","111111120000258"]
["content.96.bid","0.50"]
["content.96.keywordText","insurance distance insurance distance"]
["content.96.matchType","exact"]
["content.96.campaignName","SP_M_KT - DD3 Drones"]
["content.96.state","enabled"]
["content.96.conversions","0"]
["content.96.reportDate","2020-03-09"]
["content.96.impressions","12"]
["content.96.clicks","1"]
["content.96.orders","0"]
["content.96.ctr","8.33"]
["content.96.averageCpc","0.16"]
["content.96.spend","0.16"]
["content.96.roas","0.00"]
["content.96.revenue","0.00"]
["content.96.adgroupName","DD3 Drones"]
["content.96.conversionRate","0.00"]
["content.97.keywordId","222222222222665"]
["content.97.campaignId","111111120000258"]
["content.97.adgroupId","111111120000258"]
["content.97.bid","0.50"]
["content.97.keywordText","camera damage camera damage"]
["content.97.matchType","exact"]
["content.97.campaignName","SP_M_KT - DD3 Drones"]
["content.97.state","enabled"]
["content.97.conversions","0"]
["content.97.reportDate","2020-03-09"]
["content.97.impressions","18"]
["content.97.clicks","1"]
["content.97.orders","0"]
["content.97.ctr","5.56"]
["content.97.averageCpc","0.12"]
["content.97.spend","0.12"]
["content.97.roas","0.00"]
["content.97.revenue","0.00"]
["content.97.adgroupName","DD3 Drones"]
["content.97.conversionRate","0.00"]
["content.98.keywordId","222222222222678"]
["content.98.campaignId","111111120000258"]
["content.98.adgroupId","111111120000258"]
["content.98.bid","0.50"]
["content.98.keywordText","range damage range damage"]
["content.98.matchType","exact"]
["content.98.campaignName","SP_M_KT - DD3 Drones"]
["content.98.state","enabled"]
["content.98.conversions","0"]
["content.98.reportDate","2020-03-09"]
["content.98.impressions","7"]
["content.98.clicks","1"]
["content.98.orders","0"]
["content.98.ctr","14.29"]
["content.98.averageCpc","0.16"]
["content.98.spend","0.16"]
["content.98.roas","0.00"]
["content.98.revenue","0.00"]
["content.98.adgroupName","DD3 Drones"]
["content.98.conversionRate","0.00"]
["content.99.keywordId","222222222222683"]
["content.99.campaignId","111111120000258"]
["content.101.state","enabled"]
["content.104.conversions","0"]
["content.112.impressions","41"]
["content.115.impressions","40"]
["content.123.clicks","4"]
["content.126.spend","0.13"]
["content.129.roas","0.00"]
["content.138.campaignId","111111120000264"]
["content.141.adgroupId","111111120000264"]
["content.144.state","enabled"]
["content.152.clicks","1"]
["content.154.adgroupName","DD7 Drones"]
["content.158.revenue","12.99"]
["content.167.keywordId","222222222223010"]
["content.170.campaignId","111111120000278"]
["content.178.bid","0.63"]
["content.181.bid","0.50"]
["content.184.conversions","0"]
["content.192.orders","0"]
["content.195.ctr","0.15"]
["content.198.revenue","0.00"]
["content.206.adgroupName","M5 Drones"]
["content.211.campaignName","SP_M_KT - M72 Drones"]
["content.213.reportDate","2020-03-09"]
["content.221.state","enabled"]
["content.224.reportDate","2020-03-09"]
["content.232.reportDate","2020-03-09"]
["content.235.impressions","66"]
["content.238.spend","0.27"]
["content.246.acos","1.14"]
["content.250.keywordId","222222222223422"]
["content.253.keywordText","camera damage camera damage size"]
["content.261.bid","0.50"]
["content.267.state","enabled"]
["content.267.ctr","1.23"]
["content.275.conversions","1"]
["content.278.orders","0"]
["content.286.clicks","1"]
["content.289.spend","0.45"]
["content.293.keywordId","222222222223621"]
["content.300.conversionRate","0.00"]
["content.304.adgroupId","111111120000366"]
["content.307.adgroupId","111111120000366"]
["content.315.matchType","phrase"]
["content.318.campaignName","SP_A - RR7 Drones"]
["content.326.orders","0"]
["content.329.revenue","0.00"]
["content.333.campaignId","111111120000379"]
["content.341.keywordId","222222222225344"]
["content.344.matchType","exact"]
["content.347.matchType","exact"]
["content.355.conversions","0"]
["content.358.ctr","4.17"]
["content.361.averageCpc","0.28"]
["content.369.revenue","0.00"]
["content.373.campaignId","111111120000227"]
["content.381.keywordId","222222222222398"]
["content.384.matchType","exact"]
["content.387.matchType","exact"]
["content.395.reportDate","2020-03-08"]
["content.398.ctr","1.51"]
["content.401.averageCpc","0.22"]
["content.409.conversionRate","0.00"]
["content.413.keywordId","222222222222523"]
["content.416.matchType","exact"]
["content.424.conversions","0"]
["content.429.reportDate","2020-03-08"]
["content.435.ctr","0.67"]
["content.438.adgroupName","DD10 Drones"]
["content.441.conversionRate","0.00"]
["content.450.adgroupId","111111120000258"]
["content.453.bid","0.50"]
["content.456.state","enabled"]
["content.464.reportDate","2020-03-08"]
["content.467.conversions","2"]
["content.470.impressions","462"]
["content.478.conversions","2"]
["content.480.conversions","1"]
["content.489.orders","0"]
["content.492.orders","0"]
["content.495.revenue","0.00"]
["content.504.keywordId","222222222222956"]
["content.507.campaignId","111111120000266"]
["content.510.matchType","exact"]
["content.518.campaignId","111111120000278"]
["content.521.keywordText","camera distance camera"]
["content.524.reportDate","2020-03-08"]
["content.532.impressions","229"]
["content.536.reportDate","2020-03-08"]
["content.543.conversionRate","100.00"]
["content.546.conversionRate","0.00"]
["content.550.keywordText","Drone Aerial"]
["content.558.bid","0.90"]
["content.561.conversions","1"]
["content.564.clicks","3"]
["content.572.clicks","1"]
["content.575.spend","0.41"]
["content.583.roas","0.00"]
["content.587.campaignId","111111120000320"]
["content.592.spend","0.52"]
["content.598.keywordText","legal charge legal charge filters"]
["content.601.state","enabled"]
["content.604.clicks","3"]
["content.612.impressions","1529"]
["content.615.averageCpc","0.20"]
["content.618.ctr","0.79"]
["content.626.ctr","6.58"]
["content.629.revenue","0.00"]
["content.637.averageCpc","0.57"]
["content.640.conversionRate","0.00"]
["content.643.conversionRate","0.00"]
["content.649.matchType","exact"]
["content.655.adgroupId","111111120000366"]
["content.658.adgroupId","111111120000366"]
["content.666.matchType","exact"]
["content.669.reportDate","2020-03-08"]
["content.672.reportDate","2020-03-08"]
["content.680.reportDate","2020-03-08"]
["content.683.reportDate","2020-03-08"]
["content.691.clicks","7"]
["content.694.averageCpc","0.67"]
["content.697.ctr","0.23"]
["content.705.keywordId","222222222222276"]
["content.709.keywordText","range camera camera charge"]
["content.712.keywordText","charge range range range"]
["content.720.state","enabled"]
["content.723.conversions","0"]
["content.726.ctr","7.14"]
["content.734.adgroupName","D1 Drones"]
["content.737.adgroupName","D1 Drones"]
["content.746.bid","2.50"]
["content.749.keywordText","filters filters filters insurance"]
["content.752.state","enabled"]
["content.756.impressions","19"]
["content.763.ctr","1.56"]
["content.766.spend","6.90"]
["content.774.averageCpc","0.41"]
["content.777.spend","0.31"]
["content.781.keywordId","222222222222606"]
["content.789.campaignId","111111120000258"]
["content.792.matchType","exact"]
["content.800.conversions","0"]
["content.803.reportDate","2020-03-07"]
["content.806.averageCpc","0.15"]
["content.811.keywordId","222222222222753"]
["content.817.roas","0.00"]
["content.821.keywordId","222222222222796"]
["content.828.adgroupName","DD6 Drones"]
["content.832.campaignId","111111120000264"]
["content.835.keywordText","charge weight charge weight"]
["content.843.adgroupId","111111120000266"]
["content.846.matchType","exact"]
["content.854.campaignId","111111120000266"]
["content.857.matchType","exact"]
["content.860.conversions","1"]
["content.866.conversions","0"]
["content.871.reportDate","2020-03-07"]
["content.874.ctr","0.41"]
["content.882.state","enabled"]
["content.885.reportDate","2020-03-07"]
["content.893.reportDate","2020-03-07"]
["content.896.averageCpc","0.26"]
["content.899.conversionRate","0.00"]
["content.907.averageCpc","1.03"]
["content.910.conversionRate","0.00"]
["content.914.keywordId","222222222223271"]
["content.922.campaignId","111111120000316"]
["content.925.state","enabled"]
["content.928.state","enabled"]
["content.936.state","enabled"]
["content.939.orders","0"]
["content.947.reportDate","2020-03-07"]
["content.950.averageCpc","0.65"]
["content.953.ctr","4.17"]
["content.961.revenue","0.00"]
["content.965.adgroupId","111111120000326"]
["content.968.adgroupId","111111120000326"]
["content.973.campaignId","111111120000337"]
["content.979.clicks","2"]
["content.982.orders","0"]
["content.990.spend","0.67"]
["content.993.averageCpc","0.39"]
["content.1001.adgroupName","RR7 Drones"]
["content.1005.adgroupId","111111120000366"]
["content.1008.bid","0.50"]
["content.1016.state","enabled"]
["content.1019.conversions","0"]
["content.1022.ctr","0.17"]
["content.1029.clicks","5"]
["content.1034.keywordId","222222222223886"]
["content.1037.keywordText","size battery size battery Drone"]
["content.1045.reportDate","2020-03-06"]
["content.1048.impressions","43"]
["content.1056.orders","0"]
["content.1059.clicks","2"]
["content.1062.averageCpc","0.72"]
["content.1070.averageCpc","0.27"]
["content.1073.ctr","20.00"]
["content.1076.roas","0.00"]
["content.1083.ctr","0.43"]
["content.1087.revenue","0.00"]
["content.1091.adgroupId","111111120000233"]
["content.1099.campaignId","111111120000233"]
["content.1102.matchType","exact"]
["content.1110.conversions","0"]
["content.1113.conversions","0"]
["content.1116.ctr","1.12"]
["content.1124.averageCpc","0.11"]
["content.1127.conversionRate","0.00"]
["content.1131.keywordText","battery legal battery weight"]
["content.1139.keywordText","battery camera battery camera"]
["content.1142.ctr","0.56"]
["content.1145.averageCpc","0.15"]
["content.1153.orders","0"]
["content.1156.averageCpc","0.58"]
["content.1164.spend","0.35"]
["content.1168.keywordId","222222222222794"]
["content.1171.keywordText","Wifi height Wifi height"]
["content.1179.matchType","exact"]
["content.1182.reportDate","2020-03-06"]
["content.1185.impressions","1674"]
["content.1193.clicks","1"]
["content.1198.roas","0.00"]
["content.1204.roas","0.00"]
["content.1208.keywordId","222222222223000"]
["content.1211.matchType","phrase"]
["content.1219.campaignName","SP_M_KT - M1 Drones"]
["content.1222.impressions","6"]
["content.1225.clicks","1"]
["content.1233.roas","0.00"]
["content.1237.campaignId","111111120000291"]
["content.1240.campaignId","111111120000295"]
["content.1248.adgroupId","111111120000295"]
["content.1250.adgroupId","111111120000295"]
["content.1259.keywordId","222222222223235"]
["content.1262.bid","0.60"]
["content.1265.keywordText","weight legal weight legal"]
["content.1273.conversions","1"]
["content.1276.orders","0"]
["content.1279.ctr","5.00"]
["content.1287.adgroupName","MM5 Quad Drones"]
["content.1290.adgroupName","MM5 Quad Drones"]
["content.1294.bid","0.50"]
["content.1302.state","enabled"]
["content.1304.orders","0"]
["content.1313.impressions","31"]
["content.1316.ctr","3.51"]
["content.1319.orders","0"]
["content.1327.averageCpc","0.45"]
["content.1330.ctr","1.37"]
["content.1333.revenue","0.00"]
["content.1342.campaignId","111111120000364"]
["content.1345.adgroupId","111111120000366"]
["content.1348.state","enabled"]
["content.1356.conversions","0"]
["content.1360.ctr","1.10"]
["content.1367.ctr","1.80"]
["content.1370.orders","0"]
["content.1373.revenue","0.00"]
["content.1382.adgroupId","111111120000379"]
["content.1385.adgroupId","111111120000513"]
["content.1388.campaignName","SP_M_KT - YY5 Drones"]
["content.1396.matchType","exact"]
["content.1399.state","enabled"]
["content.1402.reportDate","2020-03-05"]
["content.1410.matchType","broad"]
["content.1416.reportDate","2020-03-05"]
["content.1421.spend","1.41"]
["content.1424.ctr","0.50"]
["content.1427.adgroupName","D1 Drones"]
["content.1435.adgroupName","D1 Drones"]
["content.1439.bid","0.50"]
["content.1442.state","enabled"]
["content.1450.state","enabled"]
["content.1453.impressions","27"]
["content.1461.conversions","0"]
["content.1464.ctr","0.47"]
["content.1467.orders","0"]
["content.1475.revenue","0.00"]
["content.1479.campaignId","111111120000252"]
["content.1482.campaignName","SP_M_KT - DD10 Quad Drones"]
["content.1490.state","enabled"]
["content.1493.orders","0"]
["content.1496.ctr","0.37"]
["content.1504.adgroupName","DD6 Drones"]
["content.1508.adgroupId","111111120000264"]
["content.1516.adgroupId","111111120000264"]
["content.1519.state","enabled"]
["content.1522.impressions","37"]
["content.1530.impressions","981"]
["content.1533.spend","0.29"]
["content.1536.roas","0.00"]
["content.1545.keywordId","222222222222944"]
["content.1548.keywordText","Aerial camera Aerial camera"]
["content.1551.bid","0.50"]
["content.1559.matchType","phrase"]
["content.1562.matchType","exact"]
["content.1570.reportDate","2020-03-05"]
["content.1573.orders","0"]
["content.1578.impressions","645"]
["content.1584.acos","1.71"]
["content.1587.conversionRate","0.00"]
["content.1590.conversionRate","0.00"]
["content.1599.keywordText","charge filters filters"]
["content.1602.matchType","exact"]
["content.1605.impressions","4656"]
["content.1613.ctr","0.79"]
["content.1616.ctr","0.49"]
["content.1624.spend","2.06"]
["content.1627.roas","0.00"]
["content.1630.conversionRate","12.50"]
["content.1637.keywordText","camera camera camera insurance"]
["content.1642.bid","0.50"]
["content.1645.conversions","0"]
["content.1653.ctr","0.66"]
["content.1656.orders","0"]
["content.1659.roas","0.00"]
["content.1667.revenue","0.00"]
["content.1671.adgroupId","111111120000337"]
["content.1679.keywordText","charge charge charge charge insurance"]
["content.1682.keywordText","height charge height charge filters"]
["content.1685.conversions","0"]
["content.1693.conversions","1"]
["content.1696.reportDate","2020-03-05"]
["content.1699.averageCpc","0.37"]
["content.1707.averageCpc","0.24"]
["content.1710.adgroupName","RR7 Drones"]
["content.1714.bid","0.25"]
["content.1722.bid","0.65"]
["content.1725.state","enabled"]
["content.1733.conversions","0"]
["content.1736.clicks","20"]
["content.1739.ctr","0.55"]
["content.1748.keywordId","222222222222272"]
["content.1750.revenue","27.82"]
["content.1754.campaignId","111111120000227"]
["content.1762.adgroupId","111111120000227"]
["content.1765.campaignName","SP_M_KT - BB6 Drones"]
["content.1773.matchType","exact"]
["content.1776.reportDate","2020-03-04"]
["content.1779.ctr","7.14"]
["content.1787.ctr","2.27"]
["content.1790.roas","7.46"]
["content.1793.roas","0.00"]
["content.1799.keywordText","legal camera legal camera insurance size"]
["content.1805.campaignName","SP_M_KT - DD10 Quad Drones"]
["content.1808.state","enabled"]
["content.1816.conversions","0"]
["content.1819.ctr","5.41"]
["content.1827.ctr","0.20"]
["content.1830.acos","3.69"]
["content.1833.roas","0.00"]
["content.1842.campaignId","111111120000258"]
["content.1845.campaignName","SP_M_KT - DD4 Quad Drones"]
["content.1848.campaignName","SP_M_KT - DD5 Quad Drones"]
["content.1855.conversions","0"]
["content.1859.orders","1"]
["content.1862.orders","1"]
["content.1870.revenue","0.00"]
["content.1873.adgroupName","DD6 Drones"]
["content.1882.bid","0.41"]
["content.1885.campaignName","SP_M_KT - DD7 Drones"]
["content.1888.campaignName","SP_M_KT - DD7 Drones"]
["content.1896.clicks","2"]
["content.1899.clicks","6"]
["content.1902.spend","1.43"]
["content.1911.spend","1.30"]
["content.1913.adgroupName","M1 QuadPro Drones"]
["content.1917.bid","0.50"]
["content.1925.campaignName","SP_M_KT - M3 Quad A Drones"]
["content.1928.state","enabled"]
["content.1936.reportDate","2020-03-04"]
["content.1939.conversions","0"]
["content.1942.orders","1"]
["content.1950.averageCpc","0.22"]
["content.1953.ctr","0.26"]
["content.1956.spend","1.36"]
["content.1965.conversionRate","0.00"]
["content.1967.conversionRate","0.00"]
["content.1971.bid","0.35"]
["content.1978.revenue","85.96"]
["content.1982.campaignId","111111120000326"]
["content.1990.keywordText","legal charge legal charge filters"]
["content.1993.matchType","phrase"]
["content.1996.impressions","50"]
["content.2004.conversions","0"]
["content.2007.ctr","0.80"]
["content.2010.adgroupName","MM5 Quad Drones"]
["content.2017.campaignId","111111120000337"]
["content.2022.keywordText","Drone camera Drone camera weight"]
["content.2030.reportDate","2020-03-04"]
["content.2033.reportDate","2020-03-04"]
["content.2036.averageCpc","0.34"]
["content.2044.ctr","1.14"]
["content.2047.adgroupName","RR7 Drones"]
["content.2051.bid","0.35"]
["content.2059.campaignId","111111120000367"]
["content.2062.keywordText","permission weight permission filters"]
["content.2065.bid","0.50"]
["content.2072.conversionRate","66.67"]
["content.2076.bid","0.94"]
["content.2083.roas","17.99"]
["content.2087.keywordId","222222222225522"]
["content.2090.keywordText","filters battery battery permission"]
["content.2098.bid","0.50"]
["content.2101.conversions","0"]
["content.2104.conversions","5"]
["content.2112.matchType","phrase"]
["content.2115.state","enabled"]
["content.2118.campaignName","SP_M_KT - D1 Drones"]
["content.2126.state","enabled"]
["content.2130.ctr","3.57"]
["content.2137.orders","0"]
["content.2140.roas","0.00"]
["content.2143.revenue","0.00"]
["content.2151.revenue","0.00"]
["content.2155.keywordId","222222222222525"]
["content.2157.conversionRate","16.67"]
["content.2166.bid","1.50"]
["content.2169.keywordText","distance distance distance range"]
["content.2172.reportDate","2020-03-03"]
["content.2180.averageCpc","0.26"]
["content.2185.bid","0.50"]
["content.2191.revenue","0.00"]
["content.2195.adgroupId","111111120000262"]
["content.2198.bid","0.69"]
["content.2206.conversions","0"]
["content.2209.reportDate","2020-03-03"]
["content.2212.ctr","1.42"]
["content.2220.roas","0.00"]
["content.2223.revenue","0.00"]
["content.2227.campaignId","111111120000264"]
["content.2234.adgroupName","DD7 Drones"]
["content.2241.reportDate","2020-03-03"]
["content.2246.campaignName","SP_M_KT - DD7 Drones"]
["content.2249.state","enabled"]
["content.2252.orders","0"]
["content.2260.spend","1.98"]
["content.2263.spend","0.52"]
["content.2267.keywordId","222222222223073"]
["content.2274.roas","252.60"]
["content.2278.campaignId","111111120000291"]
["content.2286.adgroupId","111111120000295"]
["content.2289.campaignId","111111120000295"]
["content.2292.reportDate","2020-03-03"]
["content.2300.reportDate","2020-03-03"]
["content.2303.impressions","24"]
["content.2306.spend","0.60"]
["content.2314.averageCpc","0.56"]
["content.2317.adgroupName","MM2 Quad Drones"]
["content.2321.campaignId","111111120000320"]
["content.2328.revenue","9.99"]
["content.2332.campaignId","111111120000326"]
["content.2339.adgroupName","MM5 Quad Drones"]
["content.2343.campaignId","111111120000326"]
["content.2348.adgroupId","111111120000326"]
["content.2354.keywordId","222222222223503"]
["content.2357.matchType","exact"]
["content.2360.reportDate","2020-03-03"]
["content.2368.reportDate","2020-03-03"]
["content.2371.averageCpc","0.25"]
["content.2374.spend","0.64"]
["content.2382.revenue","0.00"]
["content.2386.campaignId","111111120000364"]
["content.2394.adgroupId","111111120000366"]
["content.2397.campaignName","SP_A - RR7 Drones"]
["content.2404.bid","0.50"]
["content.2408.matchType","exact"]
["content.2411.impressions","29"]
["content.2414.clicks","1"]
["content.2422.acos","3.31"]
["content.2425.conversionRate","0.00"]
["content.2429.keywordId","222222222225344"]
["content.2437.keywordText","insurance distance distance weight"]
["content.2440.keywordText","weight damage damage weight"]
["content.2448.reportDate","2020-03-02"]
["content.2451.averageCpc","0.34"]
["content.2453.revenue","92.01"]
["content.2462.adgroupName","BB6 Drones"]
["content.2466.campaignId","111111120000233"]
["content.2469.campaignId","111111120000233"]
["content.2477.matchType","exact"]
["content.2480.matchType","exact"]
["content.2483.impressions","560"]
["content.2491.averageCpc","0.05"]
["content.2494.spend","0.02"]
["content.2503.keywordId","222222222222525"]
["content.2506.campaignId","111111120000252"]
["content.2510.matchType","exact"]
["content.2517.reportDate","2020-03-02"]
["content.2520.reportDate","2020-03-02"]
["content.2523.averageCpc","0.06"]
["content.2531.conversionRate","0.00"]
["content.2534.adgroupName","DD3 Drones"]
["content.2543.bid","0.55"]
["content.2546.bid","0.69"]
["content.2549.state","enabled"]
["content.2557.campaignName","SP_M_KT - DD6 Drones"]
["content.2560.matchType","exact"]
["content.2566.campaignName","SP_M_KT - DD6 Drones"]
["content.2571.clicks","9"]
["content.2574.impressions","553"]
["content.2577.ctr","1.64"]
["content.2585.ctr","1.64"]
["content.2588.revenue","0.00"]
["content.2597.keywordId","222222222222991"]
["content.2599.conversionRate","20.00"]
["content.2603.adgroupId","111111120000268"]
["content.2611.keywordId","222222222223044"]
["content.2614.matchType","exact"]
["content.2617.impressions","234"]
["content.2623.bid","0.50"]
["content.2628.roas","0.00"]
["content.2632.keywordId","222222222223183"]
["content.2639.conversionRate","0.00"]
["content.2643.bid","0.50"]
["content.2651.bid","0.70"]
["content.2654.state","enabled"]
["content.2657.clicks","3"]
["content.2665.clicks","2"]
["content.2668.roas","0.00"]
["content.2671.revenue","0.00"]
["content.2679.impressions","195"]
["content.2683.keywordText","filters camera filters Drone"]
["content.2686.matchType","exact"]
["content.2694.matchType","exact"]
["content.2697.impressions","67"]
["content.2705.reportDate","2020-03-02"]
["content.2708.orders","0"]
["content.2711.clicks","1"]
["content.2719.orders","0"]
["content.2722.averageCpc","0.53"]
["content.2725.spend","1.13"]
["content.2735.bid","0.50"]
["content.2737.campaignId","111111120000366"]
["content.2739.conversionRate","20.00"]
["content.2748.adgroupId","111111120000366"]
["content.2751.bid","0.50"]
["content.2759.matchType","phrase"]
["content.2762.state","enabled"]
["content.2765.campaignName","SP_M_KT - S4 Drones"]
["content.2773.reportDate","2020-03-02"]
["content.2776.conversions","0"]
["content.2779.orders","0"]
["content.2785.spend","0.30"]
["content.2790.spend","0.12"]
["content.2798.conversionRate","0.00"]
["content.2802.keywordText","damage size size legal"]
["content.2805.matchType","exact"]
["content.2813.impressions","279"]
["content.2816.clicks","2"]
["content.2819.roas","0.00"]
["content.2828.campaignId","111111120000233"]
["content.2831.adgroupId","111111120000233"]
["content.2834.state","enabled"]
["content.2842.clicks","1"]
["content.2845.ctr","100.00"]
["content.2853.adgroupName","DD10 Drones"]
["content.2856.conversionRate","0.00"]
["content.2860.keywordText","damage charge damage permission"]
["content.2868.campaignName","SP_M_KT - DD10 Quad Drones"]
["content.2871.campaignName","SP_M_KT - DD10 Quad Drones"]
["content.2874.impressions","1638"]
["content.2882.keywordText","range damage range damage"]
["content.2885.reportDate","2020-03-01"]
["content.2888.averageCpc","0.21"]
["content.2897.keywordId","222222222222737"]
["content.2899.conversionRate","0.00"]
["content.2908.bid","0.51"]
["content.2911.keywordText","Wifi height Wifi height"]
["content.2914.reportDate","2020-03-01"]
["content.2922.reportDate","2020-03-01"]
["content.2925.clicks","1"]
["content.2928.averageCpc","0.31"]
["content.2936.ctr","0.31"]
["content.2939.adgroupName","DD7 Drones"]
["content.2942.conversionRate","0.00"]
["content.2948.state","enabled"]
["content.2954.impressions","261"]
["content.2962.clicks","10"]
["content.2965.averageCpc","0.34"]
["content.2968.roas","0.00"]
["content.2976.orders","0"]
["content.2979.averageCpc","0.32"]
["content.2982.ctr","0.18"]
["content.2990.spend","1.86"]
["content.2994.keywordId","222222222223224"]
["content.2996.conversionRate","50.00"]
["content.3004.bid","1.00"]
["content.3008.reportDate","2020-03-01"]
["content.3016.campaignName","SP_M_KT - MM22 Drones"]
["content.3019.reportDate","2020-03-01"]
["content.3022.reportDate","2020-03-01"]
["content.3030.averageCpc","0.13"]
["content.3033.revenue","0.00"]
["content.3036.adgroupName","MM5 Quad Drones"]
["content.3045.campaignId","111111120000326"]
["content.3048.keywordId","222222222223493"]
["content.3056.bid","0.50"]
["content.3060.keywordText","Wifi charge Wifi charge legal"]
["content.3062.reportDate","2020-03-01"]
["content.3070.ctr","13.33"]
["content.3073.adgroupName","R10 Drones"]
["content.3076.conversionRate","0.00"]
["content.3085.bid","0.35"]
["content.3088.keywordText","Aerial weight Aerial weight range distance"]
["content.3091.reportDate","2020-03-01"]
["content.3099.averageCpc","0.51"]
["content.3102.ctr","2.94"]
["content.3110.averageCpc","0.37"]
["content.3113.revenue","33.03"]
["content.3117.reportDate","2020-03-01"]
["content.3124.adgroupName","YY5 Drones"]
["content.3127.adgroupName","YY5 Drones"]
["content.3131.adgroupId","111111120000531"]
["content.3139.campaignName","SP_M_KT - B2 Drones"]
["content.3142.campaignName","SP_M_KT - BB6 Drones"]
["content.3145.impressions","62"]
["content.3153.impressions","88"]
["content.3156.spend","0.29"]
["content.3165.keywordId","222222222222398"]
["content.3168.campaignId","111111120000233"]
["content.3173.impressions","1"]
["content.3179.conversions","0"]
["content.3182.reportDate","2020-02-29"]
["content.3185.averageCpc","0.31"]
["content.3193.averageCpc","0.25"]
["content.3196.adgroupName","DD10 Drones"]
["content.3200.bid","0.50"]
["content.3208.adgroupId","111111120000252"]
["content.3211.state","enabled"]
["content.3219.state","enabled"]
["content.3222.clicks","1"]
["content.3224.conversionRate","0.00"]
["content.3233.roas","0.00"]
["content.3237.campaignId","111111120000260"]
["content.3240.campaignName","SP_M_KT - DD5 Quad Drones"]
["content.3248.matchType","exact"]
["content.3251.impressions","221"]
["content.3254.clicks","1"]
["content.3262.ctr","0.48"]
["content.3265.spend","21.81"]
["content.3273.spend","0.16"]
["content.3277.keywordId","222222222222918"]
["content.3281.matchType","exact"]
["content.3288.bid","0.50"]
["content.3291.state","enabled"]
["content.3294.state","enabled"]
["content.3302.impressions","6"]
["content.3305.spend","1.13"]
["content.3313.averageCpc","0.33"]
["content.3316.adgroupName","M3 RotoX Drones"]
["content.3319.revenue","13.99"]
["content.3328.keywordId","222222222223183"]
["content.3331.matchType","phrase"]
["content.3335.spend","1.97"]
["content.3342.clicks","1"]
["content.3345.averageCpc","0.25"]
["content.3348.spend","0.54"]
["content.3356.averageCpc","0.45"]
["content.3359.orders","0"]
["content.3367.reportDate","2020-02-29"]
["content.3370.ctr","2.53"]
["content.3373.orders","0"]
["content.3381.spend","0.47"]
["content.3384.spend","0.34"]
["content.3391.keywordText","battery height battery height camera"]
["content.3396.adgroupId","111111120000326"]
["content.3399.bid","0.50"]
["content.3402.state","enabled"]
["content.3410.clicks","1"]
["content.3413.orders","0"]
["content.3421.clicks","11"]
["content.3424.clicks","1"]
["content.3427.spend","0.55"]
["content.3436.keywordId","222222222223683"]
["content.3439.keywordId","222222222223692"]
["content.3442.campaignName","SP_A - RR7 Drones"]
["content.3450.keywordText","charge battery charge weight"]
["content.3453.matchType","exact"]
["content.3456.impressions","113"]
["content.3464.reportDate","2020-02-29"]
["content.3467.averageCpc","0.38"]
["content.3475.revenue","0.00"]
["content.3478.adgroupName","Z5 Drones"]
["content.3482.bid","0.50"]
["content.3490.keywordText","height camera camera range"]
["content.3493.conversions","0"]
["content.3498.impressions","109"]
["content.3504.clicks","1"]
["content.3507.roas","0.00"]
["content.3511.keywordId","222222222222383"]
["content.3518.conversionRate","0.00"]
["content.3522.adgroupId","111111120000233"]
["content.3529.conversionRate","0.00"]
["content.3533.keywordText","filters filters filters insurance"]
["content.3536.conversions","1"]
["content.3544.state","enabled"]
["content.3547.clicks","1"]
["content.3554.clicks","3"]
["content.3558.revenue","0.00"]
["content.3562.adgroupId","111111120000252"]
["content.3570.adgroupId","111111120000252"]
["content.3573.state","enabled"]
["content.3576.impressions","62"]
["content.3584.conversions","0"]
["content.3587.ctr","2.13"]
["content.3590.averageCpc","0.15"]
["content.3598.acos","3.48"]
["content.3601.conversionRate","0.00"]
["content.3605.keywordId","222222222222796"]
["content.3611.averageCpc","0.51"]
["content.3616.conversions","0"]
["content.3624.reportDate","2020-02-28"]
["content.3627.averageCpc","0.15"]
["content.3630.averageCpc","0.14"]
["content.3638.conversionRate","0.00"]
["content.3642.keywordText","weight battery Wifi"]
["content.3645.matchType","exact"]
["content.3653.state","enabled"]
["content.3656.campaignName","SP_M_KT - M2 Quad C Drones"]
["content.3659.clicks","16"]
["content.3668.keywordId","222222222223128"]
["content.3670.spend","1.22"]
["content.3678.conversionRate","0.00"]
["content.3682.campaignId","111111120000295"]
["content.3685.adgroupId","111111120000295"]
["content.3693.campaignId","111111120000303"]
["content.3696.campaignId","111111120000303"]
["content.3699.keywordText","filters insurance insurance"]
["content.3707.state","enabled"]
["content.3710.state","enabled"]
["content.3713.orders","0"]
["content.3719.keywordId","222222222223366"]
["content.3724.conversionRate","0.00"]
["content.3733.bid","1.00"]
["content.3736.keywordText","camera charge camera distance"]
["content.3739.reportDate","2020-02-28"]
["content.3747.ctr","3.51"]
["content.3750.averageCpc","0.21"]
["content.3753.revenue","18.99"]
["content.3761.spend","0.12"]
["content.3765.keywordId","222222222223583"]
["content.3768.matchType","phrase"]
["content.3773.revenue","0.00"]
["content.3779.orders","0"]
["content.3787.ctr","0.39"]
["content.3790.ctr","0.48"]
["content.3793.acos","1.01"]
["content.3801.averageCpc","0.44"]
["content.3804.adgroupName","S10 Drones"]
["content.3808.bid","0.50"]
["content.3816.campaignId","111111120000379"]
["content.3819.campaignName","SP_M_KT - S6 Quad Drones"]
["content.3827.state","enabled"]
["content.3829.adgroupName","B1 Quad Drones"]
["content.3833.ctr","0.50"]
["content.3841.clicks","1"]
["content.3844.spend","0.21"]
["content.3847.adgroupName","BB6 Drones"]
["content.3855.roas","0.00"]
["content.3859.campaignId","111111120000233"]
["content.3862.adgroupId","111111120000233"]
["content.3870.matchType","exact"]
["content.3873.state","enabled"]
["content.3881.keywordId","222222222222481"]
["content.3885.campaignName","SP_M_KT - D1 Drones"]
["content.3887.matchType","exact"]
["content.3895.keywordText","Aerial distance Aerial insurance"]
["content.3898.state","enabled"]
["content.3901.campaignName","SP_M_KT - DD10 Quad Drones"]
["content.3909.reportDate","2020-02-27"]
["content.3912.averageCpc","0.50"]
["content.3915.averageCpc","0.22"]
["content.3923.revenue","0.00"]
["content.3926.adgroupName","DD3 Drones"]
["content.3935.adgroupId","111111120000262"]
["content.3936.conversions","0"]
["content.3941.conversions","0"]
["content.3949.orders","0"]
["content.3952.revenue","0.00"]
["content.3955.adgroupName","DD6 Drones"]
["content.3964.bid","0.25"]
["content.3967.bid","0.48"]
["content.3970.state","enabled"]
["content.3978.reportDate","2020-02-27"]
["content.3981.impressions","66"]
["content.3989.ctr","1.34"]
["content.3992.roas","0.00"]
["content.3995.conversionRate","28.57"]
["content.4004.campaignId","111111120000282"]
["content.4007.campaignId","111111120000282"]
["content.4010.keywordText","legal weight legal"]
["content.4018.campaignName","SP_M_KT - M4 Quad A Drones"]
["content.4021.campaignName","SP_M_KT - M4 Quad A Drones"]
["content.4024.clicks","1"]
["content.4032.reportDate","2020-02-27"]
["content.4035.ctr","0.64"]
["content.4043.averageCpc","0.26"]
["content.4047.campaignId","111111120000303"]
["content.4049.adgroupName","M7 QuadPro Drones"]
["content.4058.bid","0.50"]
["content.4061.keywordText","battery legal battery legal insurance"]
["content.4064.reportDate","2020-02-27"]
["content.4072.impressions","30"]
["content.4075.averageCpc","0.47"]
["content.4078.adgroupName","MM5 Quad Drones"]
["content.4086.adgroupName","MM5 Quad Drones"]
["content.4090.adgroupId","111111120000326"]
["content.4098.adgroupId","111111120000326"]
["content.4101.matchType","exact"]
["content.4105.adgroupName","R10 Drones"]
["content.4112.impressions","23"]
["content.4115.averageCpc","0.12"]
["content.4118.conversionRate","0.00"]
["content.4126.conversionRate","50.00"]
["content.4130.keywordText","distance distance distance legal"]
["content.4138.matchType","exact"]
["content.4141.impressions","51"]
["content.4144.ctr","6.06"]
["content.4152.clicks","2"]
["content.4155.averageCpc","0.45"]
["content.4162.bid","0.50"]
["content.4166.conversionRate","0.00"]
["content.4170.keywordText","distance Aerial distance Aerial height"]
["content.4173.keywordText","Drone distance Drone battery"]
["content.4181.conversions","0"]
["content.4184.ctr","0.07"]
["content.4192.averageCpc","0.37"]
["content.4195.adgroupName","BB6 Drones"]
["content.4198.revenue","13.99"]
["content.4207.adgroupId","111111120000233"]
["content.4210.state","enabled"]
["content.4217.adgroupId","111111120000233"]
["content.4221.ctr","0.15"]
["content.4224.revenue","0.00"]
["content.4227.revenue","0.00"]
["content.4235.revenue","16.99"]
["content.4238.roas","17.34"]
["content.4247.keywordId","222222222222552"]
["content.4250.matchType","exact"]
["content.4253.campaignName","SP_M_KT - DD10 Quad Drones"]
["content.4261.impressions","251"]
["content.4264.spend","0.20"]
["content.4268.matchType","phrase"]
["content.4276.campaignId","111111120000258"]
["content.4279.adgroupId","111111120000260"]
["content.4282.campaignName","SP_M_KT - DD4 Quad Drones"]
["content.4290.impressions","6"]
["content.4293.clicks","2"]
["content.4301.averageCpc","0.25"]
["content.4304.orders","0"]
["content.4307.spend","2.77"]
["content.4315.adgroupName","DD6 Drones"]
["content.4318.conversionRate","0.00"]
["content.4324.impressions","2734"]
["content.4330.bid","0.50"]
["content.4333.campaignId","111111120000266"]
["content.4336.bid","0.63"]
["content.4343.revenue","71.89"]
["content.4347.campaignId","111111120000278"]
["content.4355.matchType","exact"]
["content.4358.campaignName","SP_M_KT - M2 Quad C Drones"]
["content.4361.clicks","1"]
["content.4369.impressions","283"]
["content.4372.ctr","0.41"]
["content.4380.keywordId","222222222223202"]
["content.4383.roas","0.00"]
["content.4387.campaignId","111111120000303"]
["content.4390.campaignName","SP_M_KT - M72 Drones"]
["content.4398.adgroupId","111111120000316"]
["content.4401.state","enabled"]
["content.4409.matchType","exact"]
["content.4412.conversions","1"]
["content.4415.orders","0"]
["content.4423.orders","0"]
["content.4426.roas","0.00"]
["content.4431.keywordId","222222222223449"]
["content.4438.adgroupId","111111120000326"]
["content.4441.campaignName","SP_M_KT - MM5 Drones"]
["content.4449.state","enabled"]
["content.4452.clicks","5"]
["content.4455.ctr","3.49"]
["content.4463.impressions","76"]
["content.4466.ctr","0.79"]
["content.4469.averageCpc","0.51"]
["content.4477.revenue","0.00"]
["content.4481.keywordId","222222222223685"]
["content.4485.state","enabled"]
["content.4492.keywordText","permission Drone Drone size"]
["content.4495.conversions","1"]
["content.4503.state","enabled"]
["content.4506.clicks","3"]
["content.4509.reportDate","2020-02-26"]
["content.4517.ctr","50.00"]
["content.4520.adgroupName","YY5 Drones"]
["content.4523.conversionRate","0.00"]
["content.4532.keywordText","battery insurance battery"]
["content.4535.keywordText","battery filters filters charge"]
["content.4541.orders","0"]
["content.4546.orders","0"]
["content.4549.ctr","2.08"]
["content.4557.revenue","27.48"]
["content.4561.adgroupId","111111120000233"]
["content.4564.campaignId","111111120000233"]
["content.4572.campaignName","SP_M_KT - D1 Drones"]
["content.4575.state","enabled"]
["content.4578.orders","0"]
["content.4586.revenue","0.00"]
["content.4589.adgroupName","DD10 Drones"]
["content.4593.bid","0.35"]
["content.4600.spend","0.36"]
["content.4604.reportDate","2020-02-25"]
["content.4612.orders","0"]
["content.4615.orders","0"]
["content.4618.revenue","0.00"]
["content.4627.campaignId","111111120000260"]
["content.4630.campaignId","111111120000260"]
["content.4633.campaignName","SP_M_KT - DD5 Quad Drones"]
["content.4641.bid","0.31"]
["content.4644.state","enabled"]
["content.4647.impressions","53"]
["content.4655.campaignName","SP_M_KT - DD6 Drones"]
["content.4658.roas","0.00"]
["content.4667.campaignId","111111120000264"]
["content.4670.adgroupId","111111120000266"]
["content.4673.state","enabled"]
["content.4681.state","enabled"]
["content.4684.clicks","2"]
["content.4687.spend","0.71"]
["content.4695.spend","0.14"]
["content.4698.adgroupName","M1 QuadPro Drones"]
["content.4702.adgroupId","111111120000282"]
["content.4711.spend","0.15"]
["content.4713.state","enabled"]
["content.4721.state","enabled"]
["content.4724.orders","0"]
["content.4727.revenue","0.00"]
["content.4735.adgroupName","M7 QuadPro Drones"]
["content.4739.bid","0.70"]
["content.4742.bid","0.60"]
["content.4750.campaignId","111111120000316"]
["content.4753.matchType","exact"]
["content.4761.keywordText","charge charge charge charge"]
["content.4762.adgroupName","MM2 Quad Drones"]
["content.4767.spend","0.28"]
["content.4775.spend","0.49"]
["content.4778.conversionRate","0.00"]
["content.4782.keywordId","222222222223466"]
["content.4790.adgroupId","111111120000326"]
["content.4793.campaignName","SP_M_KT - MM5 Drones"]
["content.4796.matchType","exact"]
["content.4804.matchType","phrase"]
["content.4807.matchType","exact"]
["content.4815.reportDate","2020-02-25"]
["content.4818.conversionRate","0.00"]
["content.4821.spend","3.11"]
["content.4829.roas","8.58"]
["content.4833.keywordId","222222222223702"]
["content.4836.campaignId","111111120000366"]
["content.4844.matchType","exact"]
["content.4847.campaignName","SP_M_KT - S10a Drones"]
["content.4850.clicks","1"]
["content.4858.spend","1.09"]
["content.4861.averageCpc","0.42"]
["content.4869.conversionRate","0.00"]
["content.4870.campaignName","SP_M_KT - Z5 Drones"]
["content.4876.bid","0.50"]
["content.4884.conversions","0"]
["content.4887.reportDate","2020-02-24"]
["content.4890.orders","0"]
["content.4898.roas","0.00"]
["content.4901.acos","2.59"]
["content.4904.conversionRate","0.00"]
["content.4912.conversionRate","0.00"]
["content.4916.bid","2.50"]
["content.4924.state","enabled"]
["content.4924.adgroupName","D1 Drones"]
["content.4930.averageCpc","0.02"]
["content.4938.conversionRate","0.00"]
["content.4942.keywordId","222222222222544"]
["content.4945.bid","0.80"]
["content.4953.bid","0.80"]
["content.4956.state","enabled"]
["content.4959.orders","0"]
["content.4967.ctr","1.28"]
["content.4970.roas","0.00"]
["content.4978.revenue","0.00"]
["content.4981.conversions","0"]
["content.4985.campaignName","SP_M_KT - DD6 Drones"]
["content.4993.campaignId","111111120000264"]
["content.4996.keywordText","height insurance height insurance"]
["content.4999.conversions","0"]
["content.5007.matchType","exact"]
["content.5010.conversions","3"]
["content.5018.campaignName","SP_M_KT - DD7 Drones"]
["content.5021.clicks","1"]
["content.5024.spend","0.88"]
["content.5032.averageCpc","0.94"]
["content.5037.keywordId","222222222223002"]
["content.5039.campaignId","111111120000268"]
["content.5046.conversionRate","0.00"]
["content.5050.keywordText","range Aerial range"]
["content.5053.matchType","phrase"]
["content.5061.impressions","6"]
["content.5064.averageCpc","0.35"]
["content.5072.ctr","0.47"]
["content.5075.revenue","0.00"]
["content.5078.revenue","64.34"]
["content.5087.campaignId","111111120000303"]
["content.5090.matchType","exact"]
["content.5094.bid","0.50"]
["content.5101.impressions","560"]
["content.5104.spend","0.92"]
["content.5107.roas","0.00"]
["content.5115.conversionRate","100.00"]
["content.5118.adgroupName","MM5 Quad Drones"]
["content.5127.keywordId","222222222223449"]
["content.5130.bid","1.05"]
["content.5133.keywordText","permission height permission height charge"]
["content.5141.state","enabled"]
["content.5144.impressions","151"]
["content.5150.adgroupId","111111120000337"]
["content.5155.clicks","2"]
["content.5158.reportDate","2020-02-24"]
["content.5161.averageCpc","0.57"]
["content.5169.revenue","0.00"]
["content.5172.acos","10.43"]
["content.5180.roas","0.00"]
["content.5183.roas","0.00"]
["content.5187.campaignId","111111120000366"]
["content.5195.bid","0.35"]
["content.5198.campaignId","111111120000375"]
["content.5200.acos","0.62"]
["content.5209.conversions","0"]
["content.5212.state","enabled"]
["content.5215.clicks","7"]
["content.5223.conversions","0"]
["content.5226.ctr","6.90"]
["content.5234.revenue","0.00"]
["content.5237.adgroupName","BB6 Drones"]
["content.5241.adgroupId","111111120000227"]
["content.5249.adgroupId","111111120000233"]
["content.5252.state","enabled"]
["content.5257.keywordId","222222222222417"]
["content.5263.ctr","1.08"]
["content.5266.adgroupName","D1 Drones"]
["content.5270.bid","2.50"]
["content.5278.adgroupId","111111120000233"]
["content.5281.state","enabled"]
["content.5289.matchType","phrase"]
["content.5292.state","enabled"]
["content.5295.reportDate","2020-02-23"]
["content.5303.reportDate","2020-02-23"]
["content.5306.averageCpc","0.23"]
["content.5313.keywordText","charge distance charge distance"]
["content.5318.keywordId","222222222222678"]
["content.5321.matchType","exact"]
["content.5329.keywordText","charge Aerial charge range"]
["content.5332.reportDate","2020-02-23"]
["content.5335.ctr","0.33"]
["content.5343.impressions","1253"]
["content.5346.ctr","0.43"]
["content.5349.ctr","0.71"]
["content.5357.spend","2.33"]
["content.5360.adgroupName","DD6 Drones"]
["content.5367.reportDate","2020-02-23"]
["content.5372.keywordId","222222222222942"]
["content.5375.adgroupId","111111120000266"]
["content.5382.conversionRate","50.00"]
["content.5386.campaignId","111111120000266"]
["content.5389.campaignId","111111120000278"]
["content.5397.adgroupId","111111120000282"]
["content.5400.matchType","exact"]
["content.5403.bid","0.63"]
["content.5411.adgroupId","111111120000291"]
["content.5414.state","enabled"]
["content.5417.revenue","0.00"]
["content.5425.ctr","0.26"]
["content.5428.clicks","14"]
["content.5436.averageCpc","0.48"]
["content.5439.adgroupName","M7 QuadPro Drones"]
["content.5442.revenue","0.00"]
["content.5451.keywordId","222222222223335"]
["content.5453.conversionRate","25.00"]
["content.5457.adgroupId","111111120000320"]
["content.5465.matchType","exact"]
["content.5468.keywordText","Wifi charge Wifi charge range"]
["content.5473.averageCpc","0.10"]
["content.5479.orders","0"]
["content.5482.orders","0"]
["content.5490.revenue","0.00"]
["content.5493.roas","0.00"]
["content.5497.keywordId","222222222223550"]
["content.5505.matchType","phrase"]
["content.5508.campaignName","SP_A - R10 Drones"]
["content.5511.impressions","1680"]
["content.5519.conversions","0"]
["content.5522.ctr","50.00"]
["content.5529.conversionRate","0.00"]
["content.5533.adgroupName","RR7 Drones"]
["content.5537.bid","0.50"]
["content.5545.state","enabled"]
["content.5548.conversions","0"]
["content.5551.ctr","0.68"]
["content.5559.averageCpc","0.32"]
["content.5562.adgroupName","YY5 Drones"]
["content.5566.bid","2.50"]
["content.5574.keywordText","weight height weight"]
["content.5577.conversions","1"]
["content.5585.conversions","1"]
["content.5587.keywordText","insurance weight weight charge"]
["content.5591.clicks","3"]
["content.5599.state","enabled"]
["content.5602.impressions","26"]
["content.5605.orders","0"]
["content.5613.clicks","1"]
["content.5616.roas","0.00"]
["content.5619.roas","165.89"]
["content.5627.conversionRate","0.00"]
["content.5631.bid","0.50"]
["content.5639.adgroupId","111111120000252"]
["content.5643.campaignId","111111120000252"]
["content.5645.ctr","0.98"]
["content.5653.averageCpc","0.15"]
["content.5656.adgroupName","DD10 Drones"]
["content.5659.conversionRate","0.00"]
["content.5668.keywordText","filters distance filters distance"]
["content.5671.conversions","0"]
["content.5674.conversions","1"]
["content.5682.conversions","0"]
["content.5685.reportDate","2020-02-22"]
["content.5693.ctr","1.14"]
["content.5694.conversions","0"]
["content.5700.keywordId","222222222222846"]
["content.5708.keywordText","battery filters battery filters"]
["content.5711.conversions","1"]
["content.5714.state","enabled"]
["content.5722.impressions","402"]
["content.5725.impressions","95"]
["content.5728.spend","1.19"]
["content.5736.conversionRate","0.00"]
["content.5740.keywordId","222222222223034"]
["content.5748.keywordText","weight size weight"]
["content.5750.roas","0.00"]
["content.5754.clicks","1"]
["content.5762.roas","0.00"]
["content.5765.roas","0.00"]
["content.5769.keywordId","222222222223195"]
["content.5776.adgroupName","M6 Drones"]
["content.5779.roas","16.22"]
["content.5782.conversionRate","0.00"]
["content.5790.adgroupName","MM10 QuadPro Drones"]
["content.5794.bid","0.50"]
["content.5802.campaignName","SP_M_KT - MM22 Drones"]
["content.5805.adgroupId","111111120000320"]
["content.5808.ctr","16.67"]
["content.5816.revenue","0.00"]
["content.5819.adgroupName","MM5 Quad Drones"]
["content.5823.bid","0.50"]
["content.5831.campaignId","111111120000326"]
["content.5834.matchType","exact"]
["content.5842.matchType","phrase"]
["content.5845.matchType","phrase"]
["content.5848.reportDate","2020-02-22"]
["content.5856.impressions","506"]
["content.5861.bid","0.50"]
["content.5862.revenue","0.00"]
["content.5870.revenue","0.00"]
["content.5874.adgroupId","111111120000366"]
["content.5877.state","enabled"]
["content.5885.matchType","phrase"]
["content.5888.conversions","0"]
["content.5896.campaignName","SP_A - S3 Drones"]
["content.5899.clicks","1"]
["content.5902.roas","0.00"]
["content.5910.roas","0.00"]
["content.5912.conversions","0"]
["content.5917.matchType","exact"]
["content.5925.keywordId","222222222222276"]
["content.5928.adgroupId","111111120000227"]
["content.5931.campaignId","111111120000227"]
["content.5939.matchType","phrase"]
["content.5942.impressions","1139"]
["content.5950.state","enabled"]
["content.5953.orders","0"]
["content.5956.orders","0"]
["content.5964.revenue","0.00"]
["content.5968.campaignName","SP_M_KT - D1 Drones"]
["content.5971.adgroupId","111111120000233"]
["content.5979.keywordText","Wifi permission Wifi range"]
["content.5982.conversions","1"]
["content.5985.conversions","0"]
["content.5993.orders","0"]
["content.5996.orders","0"]
["content.6004.spend","0.18"]
["content.6008.keywordId","222222222222652"]
["content.6011.campaignId","111111120000258"]
["content.6019.campaignName","SP_M_KT - DD4 Quad Drones"]
["content.6024.ctr","0.64"]
["content.6025.ctr","1.82"]
["content.6033.roas","0.00"]
["content.6036.revenue","0.00"]
["content.6040.adgroupId","111111120000264"]
["content.6048.keywordText","charge insurance charge insurance"]
["content.6051.matchType","exact"]
["content.6059.reportDate","2020-02-21"]
["content.6062.impressions","69"]
["content.6065.spend","0.07"]
["content.6073.roas","14.08"]
["content.6076.roas","0.00"]
["content.6081.roas","0.00"]
["content.6088.keywordText","Drone distance Drone"]
["content.6091.matchType","broad"]
["content.6099.campaignName","SP_M_KT - M3 Quad A Drones"]
["content.6102.matchType","exact"]
["content.6105.impressions","2478"]
["content.6113.ctr","0.30"]
["content.6116.ctr","4.17"]
["content.6119.adgroupName","M5 Drones"]
["content.6128.bid","0.50"]
["content.6131.adgroupId","111111120000303"]
["content.6138.keywordId","222222222223286"]
["content.6142.conversions","1"]
["content.6145.orders","0"]
["content.6153.spend","0.42"]
["content.6156.ctr","0.97"]
["content.6159.roas","0.00"]
["content.6167.revenue","0.00"]
["content.6171.adgroupId","111111120000326"]
["content.6174.state","enabled"]
["content.6182.campaignName","SP_M_KT - MM5 Drones"]
["content.6185.impressions","203"]
["content.6189.keywordText","Wifi insurance Wifi insurance damage"]
["content.6196.roas","0.00"]
["content.6200.keywordId","222222222223582"]
["content.6207.adgroupName","RR6 Drones"]
["content.6211.adgroupId","111111120000364"]
["content.6214.keywordText","filters range weight"]
["content.6222.bid","0.25"]
["content.6225.conversions","0"]
["content.6228.conversions","0"]
["content.6236.orders","0"]
["content.6239.revenue","0.00"]
["content.6243.spend","0.84"]
["content.6251.adgroupId","111111120000379"]
["content.6254.state","enabled"]
["content.6262.keywordText","charge permission charge"]
["content.6265.state","enabled"]
["content.6268.state","enabled"]
["content.6276.clicks","1"]
["content.6279.spend","0.16"]
["content.6282.roas","0.00"]
["content.6291.keywordId","222222222222362"]
["content.6294.keywordText","Drone Drone Drone Drone height range"]
["content.6299.revenue","15.99"]
["content.6305.conversions","0"]
["content.6308.conversions","0"]
["content.6316.impressions","140"]
["content.6319.spend","0.36"]
["content.6322.spend","0.10"]
["content.6331.keywordId","222222222222525"]
["content.6333.conversionRate","40.00"]
["content.6337.bid","0.80"]
["content.6345.state","enabled"]
["content.6348.conversions","0"]
["content.6356.keywordId","222222222222652"]
["content.6359.spend","1.08"]
["content.6362.roas","0.00"]
["content.6371.keywordId","222222222222714"]
["content.6374.campaignId","111111120000262"]
["content.6377.bid","0.41"]
["content.6385.matchType","exact"]
["content.6388.campaignName","SP_M_KT - DD6 Drones"]
["content.6391.clicks","1"]
["content.6399.orders","1"]
["content.6402.revenue","0.00"]
["content.6407.reportDate","2020-02-20"]
["content.6414.campaignId","111111120000266"]
["content.6417.campaignName","SP_M_KT - DD7 Drones"]
["content.6425.reportDate","2020-02-20"]
["content.6428.reportDate","2020-02-20"]
["content.6431.ctr","0.45"]
["content.6439.orders","1"]
["content.6442.roas","604.86"]
["content.6446.keywordId","222222222223094"]
["content.6454.campaignId","111111120000291"]
["content.6457.matchType","broad"]
["content.6463.impressions","2948"]
["content.6468.campaignName","SP_M_KT - M51 Drones"]
["content.6471.impressions","2977"]
["content.6479.campaignName","SP_M_KT - M72 Drones"]
["content.6482.impressions","3438"]
["content.6485.ctr","7.14"]
["content.6493.orders","1"]
["content.6496.roas","0.00"]
["content.6499.spend","10.11"]
["content.6507.spend","0.90"]
["content.6510.conversionRate","0.00"]
["content.6517.clicks","1"]
["content.6522.keywordText","distance damage distance damage Drone"]
["content.6525.conversions","0"]
["content.6533.conversions","0"]
["content.6536.ctr","0.42"]
["content.6539.averageCpc","0.04"]
["content.6547.adgroupName","R10 Drones"]
["content.6551.bid","0.25"]
["content.6554.keywordText","height charge height charge filters"]
["content.6562.conversions","0"]
["content.6565.clicks","1"]
["content.6573.orders","1"]
["content.6576.clicks","3"]
["content.6579.adgroupName","RR7 Drones"]
["content.6587.adgroupName","S10 Drones"]
["content.6591.keywordId","222222222223818"]
["content.6593.adgroupName","S4 Quad Drones"]
["content.6601.acos","13.22"]
["content.6604.averageCpc","0.52"]
["content.6612.averageCpc","0.84"]
["content.6615.revenue","35.95"]
["content.6618.adgroupName","B2 Drones"]
["content.6627.campaignId","111111120000227"]
["content.6631.spend","10.00"]
["content.6633.bid","0.45"]
["content.6641.campaignId","111111120000233"]
["content.6644.keywordId","222222222222392"]
["content.6647.keywordText","range weight range distance"]
["content.6655.campaignName","SP_M_KT - D1 Drones"]
["content.6658.campaignName","SP_M_KT - D1 Drones"]
["content.6666.impressions","155"]
["content.6669.clicks","19"]
["content.6672.ctr","0.86"]
["content.6680.averageCpc","0.17"]
["content.6685.ctr","0.45"]
["content.6686.conversionRate","0.00"]
["content.6695.bid","0.80"]
["content.6698.keywordText","distance Drone"]
["content.6701.reportDate","2020-02-19"]
["content.6709.conversions","1"]
["content.6712.clicks","1"]
["content.6720.roas","0.00"]
["content.6723.revenue","0.00"]
["content.6727.adgroupId","111111120000264"]
["content.6735.campaignName","SP_M_KT - DD6 Drones"]
["content.6737.adgroupId","111111120000264"]
["content.6741.clicks","1"]
["content.6749.clicks","1"]
["content.6752.roas","0.00"]
["content.6755.conversionRate","100.00"]
["content.6763.revenue","0.00"]
["content.6767.campaignId","111111120000266"]
["content.6775.campaignId","111111120000266"]
["content.6778.matchType","exact"]
["content.6781.impressions","339"]
["content.6789.reportDate","2020-02-19"]
["content.6793.campaignName","SP_M_KT - M2 Quad C Drones"]
["content.6795.adgroupName","M3 RotoX Drones"]
["content.6803.roas","0.00"]
["content.6807.keywordId","222222222223171"]
["content.6809.adgroupName","M5 Drones"]
["content.6818.keywordId","222222222223207"]
["content.6821.keywordText","distance distance distance"]
["content.6829.keywordText","Wifi height height"]
["content.6832.conversions","0"]
["content.6835.conversions","0"]
["content.6843.orders","0"]
["content.6849.adgroupId","111111120000320"]
["content.6849.averageCpc","0.22"]
["content.6857.roas","0.00"]
["content.6860.conversionRate","30.77"]
["content.6868.spend","3.97"]
["content.6871.revenue","11.21"]
["content.6874.roas","13.46"]
["content.6882.conversionRate","0.00"]
["content.6886.adgroupId","111111120000328"]
["content.6889.bid","0.50"]
["content.6897.conversions","0"]
["content.6899.adgroupName","R10 Drones"]
["content.6903.averageCpc","0.66"]
["content.6911.roas","0.00"]
["content.6914.revenue","0.00"]
["content.6922.conversionRate","200.00"]
["content.6926.adgroupId","111111120000366"]
["content.6929.campaignId","111111120000366"]
["content.6937.keywordText","camera height"]
["content.6940.matchType","phrase"]
["content.6943.impressions","15"]
["content.6951.ctr","0.28"]
["content.6954.conversions","0"]
["content.6958.keywordId","222222222225510"]
["content.6966.bid","0.30"]
["content.6969.keywordText","filters legal legal size"]
["content.6977.conversions","3"]
["content.6980.conversions","0"]
["content.6983.ctr","7.09"]
["content.6991.spend","0.89"]
["content.6994.spend","0.42"]
["content.6997.conversionRate","100.00"]
["content.7006.bid","0.50"]
["content.7010.averageCpc","0.51"]
["content.7012.reportDate","2020-02-18"]
["content.7020.impressions","197"]
["content.7023.spend","0.06"]
["content.7031.conversionRate","20.00"]
["content.7034.conversionRate","0.00"]
["content.7038.keywordText","Aerial Wifi Aerial"]
["content.7046.bid","1.60"]
["content.7049.conversions","0"]
["content.7052.ctr","4.55"]
["content.7060.orders","0"]
["content.7063.revenue","0.00"]
["content.7069.spend","0.34"]
["content.7075.campaignId","111111120000264"]
["content.7078.keywordText","range height range height"]
["content.7086.keywordId","222222222222800"]
["content.7089.bid","0.50"]
["content.7092.campaignName","SP_M_KT - DD6 Drones"]
["content.7100.adgroupId","111111120000264"]
["content.7103.campaignName","SP_M_KT - DD6 Drones"]
["content.7106.state","enabled"]
["content.7114.clicks","4"]
["content.7117.spend","0.50"]
["content.7123.acos","16.46"]
["content.7128.roas","26.46"]
["content.7132.keywordId","222222222223034"]
["content.7140.keywordId","222222222223075"]
["content.7143.matchType","phrase"]
["content.7146.campaignName","SP_M_KT - M3 Quad A Drones"]
["content.7154.impressions","301"]
["content.7157.averageCpc","0.53"]
["content.7160.averageCpc","0.49"]
["content.7168.revenue","0.00"]
["content.7172.adgroupId","111111120000303"]
["content.7179.conversionRate","0.00"]
["content.7183.campaignName","SP_M_KT - MM10 Drones"]
["content.7186.campaignName","SP_M_KT - MM10 Drones"]
["content.7194.clicks","1"]
["content.7197.roas","0.00"]
["content.7200.revenue","0.00"]
["content.7208.adgroupName","MM5 Quad Drones"]
["content.7211.revenue","63.35"]
["content.7215.campaignId","111111120000326"]
["content.7223.keywordText","insurance camera insurance camera weight"]
["content.7226.keywordText","height charge height charge height"]
["content.7231.adgroupId","111111120000326"]
["content.7237.conversions","0"]
["content.7240.conversions","0"]
["content.7248.reportDate","2020-02-18"]
["content.7251.impressions","422"]
["content.7254.spend","13.03"]
["content.7262.averageCpc","0.73"]
["content.7265.orders","0"]
["content.7268.revenue","0.00"]
["content.7277.keywordId","222222222223750"]
["content.7279.conversionRate","50.00"]
["content.7286.ctr","2.96"]
["content.7291.keywordId","222222222223853"]
["content.7294.keywordText","size legal size legal Aerial"]
["content.7302.campaignName","SP_M_KT - YY5 Drones"]
["content.7305.matchType","exact"]
["content.7308.conversions","0"]
["content.7316.reportDate","2020-02-17"]
["content.7319.averageCpc","0.27"]
["content.7322.adgroupName","BB6 Drones"]
["content.7330.conversionRate","0.00"]
["content.7334.keywordText","filters Drone Drone Wifi"]
["content.7337.revenue","0.00"]
["content.7345.clicks","1"]
["content.7348.roas","0.00"]
["content.7356.revenue","0.00"]
["content.7360.adgroupId","111111120000233"]
["content.7363.state","enabled"]
["content.7371.state","enabled"]
["content.7374.orders","0"]
["content.7382.ctr","0.44"]
["content.7385.adgroupName","DD10 Drones"]
["content.7389.adgroupId","111111120000252"]
["content.7392.revenue","0.00"]
["content.7400.bid","0.35"]
["content.7403.matchType","exact"]
["content.7411.keywordText","Drone damage Wifi"]
["content.7414.reportDate","2020-02-17"]
["content.7417.reportDate","2020-02-17"]
["content.7425.orders","0"]
["content.7428.revenue","0.00"]
["content.7436.adgroupName","DD6 Drones"]
["content.7440.bid","0.41"]
["content.7443.conversions","0"]
["content.7448.adgroupName","DD6 Drones"]
["content.7454.conversions","0"]
["content.7457.conversions","0"]
["content.7465.ctr","0.16"]
["content.7468.adgroupName","DD7 Drones"]
["content.7471.conversionRate","0.00"]
["content.7480.keywordText","Drone distance Drone"]
["content.7483.matchType","broad"]
["content.7491.campaignName","SP_M_KT - M3 Quad A Drones"]
["content.7494.reportDate","2020-02-17"]
["content.7497.conversions","2"]
["content.7504.revenue","0.00"]
["content.7508.clicks","14"]
["content.7511.clicks","1"]
["content.7519.averageCpc","1.22"]
["content.7522.averageCpc","0.32"]
["content.7525.conversionRate","0.00"]
["content.7534.campaignId","111111120000316"]
["content.7537.campaignId","111111120000320"]
["content.7545.bid","0.50"]
["content.7548.bid","0.75"]
["content.7551.conversions","0"]
["content.7559.clicks","1"]
["content.7561.roas","0.00"]
["content.7565.adgroupName","MM5 Quad Drones"]
["content.7573.adgroupName","MM5 Quad Drones"]
["content.7576.conversionRate","0.00"]
["content.7580.bid","0.50"]
["content.7588.bid","0.50"]
["content.7591.conversions","0"]
["content.7599.orders","0"]
["content.7602.ctr","0.10"]
["content.7605.revenue","0.00"]
["content.7614.adgroupId","111111120000366"]
["content.7618.keywordText","charge filters charge permission"]
["content.7620.reportDate","2020-02-17"]
["content.7628.state","enabled"]
["content.7631.impressions","19"]
["content.7634.averageCpc","0.37"]
["content.7642.orders","0"]
["content.7645.spend","0.96"]
["content.7653.orders","0"]
["content.7656.roas","0.00"]
["content.7660.campaignId","111111120000203"]
["content.7667.conversionRate","0.00"]
["content.7669.campaignId","111111120000227"]
["content.7674.reportDate","2020-02-16"]
["content.7682.impressions","220"]
["content.7685.spend","0.09"]
["content.7693.spend","0.26"]
["content.7696.revenue","0.00"]
["content.7700.adgroupId","111111120000233"]
["content.7708.bid","1.00"]
["content.7711.conversions","0"]
["content.7714.orders","0"]
["content.7722.orders","0"]
["content.7725.clicks","1"]
["content.7728.adgroupName","DD10 Drones"]
["content.7737.campaignId","111111120000252"]
["content.7740.campaignName","SP_M_KT - DD10 Quad Drones"]
["content.7748.matchType","phrase"]
["content.7751.reportDate","2020-02-16"]
["content.7754.impressions","77"]
["content.7762.spend","0.73"]
["content.7765.conversionRate","100.00"]
["content.7769.keywordId","222222222222737"]
["content.7777.keywordText","distance battery distance battery"]
["content.7782.keywordId","222222222222800"]
["content.7783.clicks","8"]
["content.7791.impressions","4"]
["content.7794.impressions","847"]
["content.7802.spend","0.79"]
["content.7805.conversionRate","0.00"]
["content.7808.conversionRate","0.00"]
["content.7817.keywordId","222222222222991"]
["content.7820.campaignId","111111120000266"]
["content.7823.matchType","phrase"]
["content.7831.reportDate","2020-02-16"]
["content.7836.state","enabled"]
["content.7837.averageCpc","0.33"]
["content.7845.roas","0.00"]
["content.7848.acos","2.32"]
["content.7857.keywordId","222222222223195"]
["content.7860.campaignId","111111120000295"]
["content.7863.matchType","exact"]
["content.7871.conversions","0"]
["content.7874.reportDate","2020-02-16"]
["content.7877.clicks","5"]
["content.7885.conversions","3"]
["content.7887.adgroupId","111111120000320"]
["content.7891.reportDate","2020-02-16"]
["content.7899.campaignName","SP_M_KT - MM5 Drones"]
["content.7902.impressions","51"]
["content.7910.ctr","1.41"]
["content.7913.ctr","2.33"]
["content.7916.roas","42.68"]
["content.7924.roas","0.00"]
["content.7928.campaignId","111111120000326"]
["content.7931.campaignName","SP_A - R10 Drones"]
["content.7939.matchType","exact"]
["content.7942.adgroupName","R10 Drones"]
["content.7945.clicks","11"]
["content.7953.impressions","21"]
["content.7956.spend","0.54"]
["content.7964.spend","0.43"]
["content.7967.revenue","72.98"]
["content.7971.keywordId","222222222223724"]
["content.7978.conversionRate","0.00"]
["content.7982.keywordText","damage filters filters camera"]
["content.7985.conversions","2"]
["content.7993.state","enabled"]
["content.7999.keywordId","222222222225356"]
["content.8004.ctr","100.00"]
["content.8007.adgroupName","B1 Quad Drones"]
["content.8011.bid","0.35"]
["content.8019.bid","0.97"]
["content.8022.campaignName","SP_M_KT - BB6 Drones"]
["content.8025.campaignName","SP_M_KT - BB6 Drones"]
["content.8033.impressions","534"]
["content.8036.averageCpc","0.37"]
["content.8039.averageCpc","0.50"]
["content.8047.spend","0.36"]
["content.8050.conversionRate","0.00"]
["content.8056.campaignId","111111120000233"]
["content.8062.campaignId","111111120000233"]
["content.8065.adgroupId","111111120000245"]
["content.8073.campaignName","SP_M_KT - DD10 Quad Drones"]
["content.8076.impressions","128"]
["content.8079.clicks","4"]
["content.8087.roas","0.00"]
["content.8090.revenue","0.00"]
["content.8094.campaignId","111111120000252"]
["content.8102.adgroupId","111111120000258"]
["content.8105.bid","0.50"]
["content.8112.state","enabled"]
["content.8116.ctr","100.00"]
["content.8119.ctr","1.22"]
["content.8127.averageCpc","0.21"]
["content.8130.spend","0.59"]
["content.8133.conversionRate","0.00"]
["content.8142.adgroupId","111111120000264"]
["content.8145.bid","0.60"]
["content.8148.conversions","0"]
["content.8156.orders","0"]
["content.8159.ctr","1.56"]
["content.8163.averageCpc","0.28"]
["content.8170.conversionRate","0.00"]
["content.8174.bid","0.50"]
["content.8182.matchType","exact"]
["content.8185.campaignName","SP_M_KT - M2 Quad C Drones"]
["content.8188.impressions","127"]
["content.8196.conversions","0"]
["content.8199.ctr","0.77"]
["content.8202.adgroupName","M5 Drones"]
["content.8210.spend","1.93"]
["content.8213.adgroupName","M6 Drones"]
["content.8219.orders","0"]
["content.8224.conversionRate","0.00"]
["content.8228.bid","0.70"]
["content.8236.adgroupId","111111120000320"]
["content.8239.state","enabled"]
["content.8242.orders","0"]
["content.8250.orders","0"]
["content.8253.revenue","0.00"]
["content.8261.adgroupName","MM5 Quad Drones"]
["content.8265.bid","0.50"]
["content.8268.conversions","0"]
["content.8274.reportDate","2020-02-15"]
["content.8279.orders","0"]
["content.8282.roas","0.00"]
["content.8290.spend","0.22"]
["content.8294.keywordId","222222222223600"]
["content.8297.campaignId","111111120000364"]
["content.8305.matchType","exact"]
["content.8308.conversions","1"]
["content.8316.campaignName","SP_A - RR7 Drones"]
["content.8319.conversions","0"]
["content.8322.ctr","1.00"]
["content.8330.impressions","311"]
["content.8333.adgroupName","S4 Quad Drones"]
["content.8336.conversionRate","0.00"]
["content.8345.campaignId","111111120000513"]
["content.8348.campaignName","SP_M_KT - YY5 Drones"]
["content.8351.state","enabled"]
["content.8359.matchType","phrase"]
["content.8362.matchType","exact"]
["content.8370.conversions","0"]
["content.8373.clicks","4"]
["content.8376.clicks","1"]
["content.8381.reportDate","2020-02-14"]
["content.8388.campaignId","111111120000233"]
["content.8391.adgroupId","111111120000233"]
["content.8399.keywordId","222222222222459"]
["content.8401.adgroupName","D1 Drones"]
["content.8405.keywordId","222222222222481"]
["content.8412.conversionRate","0.00"]
["content.8415.adgroupName","DD10 Drones"]
["content.8424.keywordId","222222222222554"]
["content.8427.bid","1.60"]
["content.8430.bid","1.50"]
["content.8436.conversionRate","0.00"]
["content.8441.reportDate","2020-02-14"]
["content.8444.orders","0"]
["content.8452.revenue","0.00"]
["content.8455.revenue","0.00"]
["content.8459.adgroupId","111111120000262"]
["content.8467.adgroupId","111111120000264"]
["content.8470.campaignName","SP_M_KT - DD6 Drones"]
["content.8478.clicks","2"]
["content.8481.orders","0"]
["content.8484.revenue","0.00"]
["content.8493.conversions","0"]
["content.8496.keywordId","222222222222913"]
["content.8499.matchType","exact"]
["content.8507.matchType","exact"]
["content.8510.reportDate","2020-02-14"]
["content.8513.ctr","1.34"]
["content.8521.orders","0"]
["content.8524.roas","0.00"]
["content.8532.averageCpc","0.34"]
["content.8535.roas","6.47"]
["content.8539.keywordId","222222222223127"]
["content.8547.keywordId","222222222223171"]
["content.8550.campaignName","SP_M_KT - M51 Drones"]
["content.8553.reportDate","2020-02-14"]
["content.8561.conversions","1"]
["content.8564.impressions","101"]
["content.8572.reportDate","2020-02-14"]
["content.8575.orders","0"]
["content.8578.revenue","0.00"]
["content.8586.adgroupName","MM2 Quad Drones"]
["content.8590.bid","0.60"]
["content.8593.conversions","0"]
["content.8601.conversions","2"]
["content.8606.clicks","1"]
["content.8607.averageCpc","0.25"]
["content.8615.revenue","0.00"]
["content.8619.adgroupId","111111120000326"]
["content.8626.conversionRate","0.00"]
["content.8630.keywordText","filters camera filters camera weight"]
["content.8633.keywordText","range battery range battery legal"]
["content.8641.conversions","0"]
["content.8644.ctr","3.23"]
["content.8647.averageCpc","0.24"]
["content.8655.adgroupName","RR7 Drones"]
["content.8657.adgroupName","RR7 Drones"]
["content.8662.matchType","exact"]
["content.8670.state","enabled"]
["content.8673.conversions","2"]
["content.8681.reportDate","2020-02-14"]
["content.8684.averageCpc","0.56"]
["content.8687.ctr","0.82"]
["content.8695.revenue","0.00"]
["content.8698.adgroupName","Z5 Drones"]
["content.8702.adgroupId","111111120000203"]
["content.8710.state","enabled"]
["content.8712.clicks","2"]
["content.8716.averageCpc","0.37"]
["content.8724.roas","0.00"]
["content.8727.revenue","0.00"]
["content.8736.adgroupId","111111120000233"]
["content.8739.bid","1.00"]
["content.8742.conversions","0"]
["content.8750.clicks","7"]
["content.8753.clicks","2"]
["content.8756.spend","2.70"]
["content.8764.ctr","0.38"]
["content.8768.averageCpc","0.36"]
["content.8771.keywordId","222222222222552"]
["content.8779.campaignId","111111120000252"]
["content.8782.campaignName","SP_M_KT - DD10 Quad Drones"]
["content.8790.impressions","222"]
["content.8793.impressions","222"]
["content.8796.spend","0.14"]
["content.8804.spend","1.60"]
["content.8807.conversionRate","33.33"]
["content.8811.keywordText","Aerial permission Aerial permission"]
["content.8819.matchType","exact"]
["content.8825.matchType","exact"]
["content.8825.averageCpc","0.25"]
["content.8833.reportDate","2020-02-13"]
["content.8836.averageCpc","0.28"]
["content.8844.averageCpc","0.31"]
["content.8847.adgroupName","DD7 Drones"]
["content.8851.keywordId","222222222222941"]
["content.8858.averageCpc","0.36"]
["content.8861.roas","0.00"]
["content.8864.adgroupName","DD7 Drones"]
["content.8872.spend","0.46"]
["content.8875.ctr","10.00"]
["content.8884.campaignId","111111120000286"]
["content.8887.matchType","broad"]
["content.8890.impressions","65"]
["content.8898.conversions","1"]
["content.8901.clicks","3"]
["content.8904.orders","0"]
["content.8912.spend","0.91"]
["content.8915.conversionRate","0.00"]
["content.8918.adgroupName","M7 QuadPro Drones"]
["content.8927.keywordId","222222222223302"]
["content.8931.averageCpc","0.28"]
["content.8938.adgroupId","111111120000320"]
["content.8941.campaignName","SP_M_KT - MM22 Drones"]
["content.8944.state","enabled"]
["content.8952.clicks","1"]
["content.8955.spend","0.46"]
["content.8958.roas","0.00"]
["content.8967.keywordId","222222222223507"]
["content.8970.campaignId","111111120000326"]
["content.8973.campaignName","SP_M_KT - MM5 Drones"]
["content.8981.matchType","phrase"]
["content.8986.adgroupId","111111120000337"]
["content.8992.conversions","0"]
["content.8995.ctr","5.00"]
["content.8998.ctr","2.63"]
["content.9006.averageCpc","0.22"]
["content.9009.averageCpc","0.86"]
["content.9012.conversionRate","0.00"]
["content.9021.campaignId","111111120000367"]
["content.9024.adgroupId","111111120000369"]
["content.9027.campaignName","SP_A - S3 Drones"]
["content.9035.state","enabled"]
["content.9038.conversions","0"]
["content.9044.ctr","0.41"]
["content.9049.averageCpc","0.40"]
["content.9052.conversionRate","0.00"]
["content.9061.bid","0.75"]
["content.9064.bid","0.50"]
["content.9067.state","enabled"]
["content.9075.state","enabled"]
["content.9078.orders","0"]
["content.9081.roas","94.76"]
["content.9089.spend","0.28"]
["content.9093.keywordId","222222222222454"]
["content.9101.bid","1.00"]
["content.9104.state","enabled"]
["content.9107.orders","0"]
["content.9115.ctr","1.98"]
["content.9118.revenue","22.98"]
["content.9122.adgroupId","111111120000252"]
["content.9130.bid","0.60"]
["content.9133.state","enabled"]
["content.9141.impressions","157"]
["content.9144.impressions","12"]
["content.9147.spend","0.16"]
["content.9156.campaignId","111111120000262"]
["content.9158.conversionRate","50.00"]
["content.9162.bid","0.41"]
["content.9170.keywordId","222222222222789"]
["content.9173.keywordText","damage insurance damage insurance"]
["content.9176.matchType","exact"]
["content.9184.impressions","82"]
["content.9187.spend","0.48"]
["content.9195.roas","0.00"]
["content.9199.keywordId","222222222222941"]
["content.9202.matchType","exact"]
["content.9207.state","enabled"]
["content.9213.reportDate","2020-02-12"]
["content.9216.impressions","21"]
["content.9224.orders","0"]
["content.9227.roas","9.28"]
["content.9230.revenue","0.00"]
["content.9239.campaignId","111111120000291"]
["content.9242.adgroupId","111111120000291"]
["content.9250.campaignName","SP_M_KT - M51 Drones"]
["content.9253.clicks","1"]
["content.9256.orders","0"]
["content.9263.acos","3.80"]
["content.9268.campaignId","111111120000303"]
["content.9270.conversionRate","75.00"]
["content.9278.adgroupName","MM2 Quad Drones"]
["content.9281.conversionRate","0.00"]
["content.9285.keywordText","charge charge charge charge"]
["content.9293.reportDate","2020-02-12"]
["content.9296.reportDate","2020-02-12"]
["content.9304.ctr","50.00"]
["content.9307.roas","194.92"]
["content.9310.revenue","0.00"]
["content.9319.spend","0.26"]
["content.9321.adgroupName","MM5 Quad Drones"]
["content.9325.campaignId","111111120000337"]
["content.9333.keywordText","Drone Aerial Drone Aerial filters"]
["content.9336.keywordText","distance Aerial distance Aerial insurance"]
["content.9339.reportDate","2020-02-12"]
["content.9347.conversions","0"]
["content.9350.orders","0"]
["content.9358.averageCpc","0.18"]
["content.9361.spend","0.95"]
["content.9364.conversionRate","0.00"]
["content.9370.roas","0.00"]
["content.9376.campaignName","SP_A - S3 Drones"]
["content.9379.clicks","2"]
["content.9387.reportDate","2020-02-12"]
["content.9390.averageCpc","0.19"]
["content.9398.roas","0.00"]
["content.9401.revenue","0.00"]
["content.9405.adgroupId","111111120000227"]
["content.9413.adgroupId","111111120000227"]
["content.9416.campaignName","SP_M_KT - BB6 Drones"]
["content.9419.clicks","10"]
["content.9425.impressions","1"]
["content.9430.averageCpc","0.21"]
["content.9433.adgroupName","D1 Drones"]
["content.9441.adgroupName","D1 Drones"]
["content.9445.adgroupId","111111120000233"]
["content.9453.bid","0.50"]
["content.9456.conversions","0"]
["content.9459.ctr","0.16"]
["content.9467.averageCpc","0.07"]
["content.9470.revenue","0.00"]
["content.9474.adgroupId","111111120000252"]
["content.9481.adgroupName","DD10 Drones"]
["content.9485.state","enabled"]
["content.9488.conversions","0"]
["content.9496.clicks","1"]
["content.9499.roas","0.00"]
["content.9507.roas","0.00"]
["content.9510.conversionRate","40.00"]
["content.9513.adgroupName","DD6 Drones"]
["content.9521.adgroupName","DD6 Drones"]
["content.9525.campaignId","111111120000264"]
["content.9528.keywordId","222222222222846"]
["content.9536.keywordId","222222222222884"]
["content.9540.keywordText","battery permission battery permission"]
["content.9542.campaignName","SP_M_KT - DD7 Drones"]
["content.9550.impressions","80"]
["content.9553.impressions","26"]
["content.9561.clicks","10"]
["content.9564.spend","1.00"]
["content.9567.averageCpc","0.44"]
["content.9575.adgroupName","M2 Drones"]
["content.9579.bid","0.63"]
["content.9582.keywordText","weight size weight"]
["content.9590.conversions","0"]
["content.9594.spend","0.27"]
["content.9596.ctr","0.47"]
["content.9604.roas","0.00"]
["content.9607.revenue","0.00"]
["content.9615.conversionRate","0.00"]
["content.9619.keywordId","222222222223288"]
["content.9622.keywordText","Drone range Drone legal"]
["content.9630.reportDate","2020-02-11"]
["content.9633.impressions","39"]
["content.9636.spend","0.54"]
["content.9644.roas","0.00"]
["content.9650.conversionRate","20.00"]
["content.9655.adgroupName","MM5 Quad Drones"]
["content.9658.conversionRate","0.00"]
["content.9662.bid","0.35"]
["content.9670.keywordText","size insurance size insurance Drone Wifi"]
["content.9673.adgroupId","111111120000337"]
["content.9676.campaignName","SP_A - R10 Drones"]
["content.9684.bid","1.00"]
["content.9687.conversions","0"]
["content.9690.ctr","1.71"]
["content.9698.conversions","3"]
["content.9701.clicks","1"]
["content.9709.spend","0.09"]
["content.9712.acos","1.50"]
["content.9715.adgroupName","RR8 Drones"]
["content.9723.spend","2.33"]
["content.9726.adgroupName","S4 Quad Drones"]
["content.9730.adgroupId","111111120000379"]
["content.9738.keywordId","222222222225350"]
["content.9741.bid","0.50"]
["content.9744.campaignName","SP_M_KT - B1 Quad Drones"]
["content.9752.state","enabled"]
["content.9757.impressions","46"]
["content.9763.orders","0"]
["content.9766.revenue","0.00"]
["content.9770.campaignId","111111120000227"]
["content.9778.adgroupId","111111120000233"]
["content.9781.state","enabled"]
["content.9784.conversions","0"]
["content.9792.orders","0"]
["content.9795.revenue","0.00"]
["content.9798.revenue","0.00"]
["content.9807.campaignId","111111120000252"]
["content.9808.conversionRate","0.00"]
["content.9818.keywordId","222222222222558"]
["content.9821.bid","0.63"]
["content.9824.keywordText","charge legal charge weight"]
["content.9832.reportDate","2020-02-10"]
["content.9835.averageCpc","0.90"]
["content.9838.averageCpc","0.46"]
["content.9846.revenue","14.99"]
["content.9849.adgroupName","DD4 Drones"]
["content.9853.bid","0.55"]
["content.9861.campaignName","SP_M_KT - DD6 Drones"]
["content.9863.state","enabled"]
["content.9872.conversions","1"]
["content.9875.orders","0"]
["content.9878.clicks","1"]
["content.9886.orders","0"]
["content.9889.orders","0"]
["content.9892.spend","0.25"]
["content.9900.acos","9.30"]
["content.9903.spend","1.73"]
["content.9911.averageCpc","0.12"]
["content.9914.adgroupName","M1 QuadPro Drones"]
["content.9918.roas","0.00"]
["content.9925.adgroupName","M2 Drones"]
["content.9928.revenue","110.46"]
["content.9931.conversionRate","13.33"]
["content.9940.adgroupId","111111120000295"]
["content.9943.bid","0.50"]
["content.9946.conversions","0"]
["content.9954.bid","0.90"]
["content.9957.conversions","0"]
["content.9965.clicks","1"]
["content.9968.clicks","1"]
["content.9974.clicks","15"]
["content.9975.clicks","8"]
["content.9975.orders","0"]
["content.9975.ctr","0.11"]
["content.9975.averageCpc","0.17"]
["content.9975.spend","1.33"]
["content.9975.roas","0.00"]
["content.9975.revenue","0.00"]
["content.9975.adgroupName","MM2 Quad Drones"]
["content.9975.conversionRate","0.00"]
["content.9976.keywordId","222222222223336"]
["content.9976.campaignId","111111120000320"]
["content.9976.adgroupId","111111120000320"]
["content.9976.bid","0.50"]
["content.9976.keywordText","distance charge distance charge"]
["content.9976.matchType","broad"]
["content.9976.campaignName","SP_M_KT - MM22 Drones"]
["content.9976.state","enabled"]
["content.9976.conversions","1"]
["content.9976.reportDate","2020-02-10"]
["content.9976.impressions","8415"]
["content.9976.clicks","19"]
["content.9976.orders","0"]
["content.9976.ctr","0.23"]
["content.9976.averageCpc","0.19"]
["content.9976.spend","3.67"]
["content.9976.acos","19.93"]
["content.9976.roas","5.02"]
["content.9976.revenue","18.41"]
["content.9976.adgroupName","MM2 Quad Drones"]
["content.9976.conversionRate","5.26"]
["content.9977.keywordId","222222222223348"]
["content.9977.campaignId","111111120000320"]
["content.9977.adgroupId","111111120000320"]
["content.9977.bid","0.70"]
["content.9977.keywordText","battery legal battery legal insurance"]
["content.9977.matchType","exact"]
["content.9977.campaignName","SP_M_KT - MM22 Drones"]
["content.9977.state","enabled"]
["content.9977.conversions","1"]
["content.9977.reportDate","2020-02-10"]
["content.9977.impressions","294"]
["content.9977.clicks","4"]
["content.9977.orders","0"]
["content.9977.ctr","1.36"]
["content.9977.averageCpc","0.97"]
["content.9977.spend","3.86"]
["content.9977.acos","11.70"]
["content.9977.roas","8.55"]
["content.9977.revenue","32.99"]
["content.9977.adgroupName","MM2 Quad Drones"]
["content.9977.conversionRate","25.00"]
["content.9978.keywordId","222222222223355"]
["content.9978.campaignId","111111120000320"]
["content.9978.adgroupId","111111120000320"]
["content.9978.bid","0.50"]
["content.9978.keywordText","insurance damage insurance damage"]
["content.9978.matchType","exact"]
["content.9978.campaignName","SP_M_KT - MM22 Drones"]
["content.9978.state","enabled"]
["content.9978.conversions","0"]
["content.9978.reportDate","2020-02-10"]
["content.9978.impressions","301"]
["content.9978.clicks","8"]
["content.9978.orders","0"]
["content.9978.ctr","2.66"]
["content.9978.averageCpc","1.06"]
["content.9978.spend","8.49"]
["content.9978.roas","0.00"]
["content.9978.revenue","0.00"]
["content.9978.adgroupName","MM2 Quad Drones"]
["content.9978.conversionRate","0.00"]
["content.9979.keywordId","222222222223356"]
["content.9979.campaignId","111111120000320"]
["content.9979.adgroupId","111111120000320"]
["content.9979.bid","0.35"]
["content.9979.keywordText","range insurance range insurance insurance"]
["content.9979.matchType","broad"]
["content.9979.campaignName","SP_M_KT - MM22 Drones"]
["content.9979.state","enabled"]
["content.9979.conversions","1"]
["content.9979.reportDate","2020-02-10"]
["content.9979.impressions","248"]
["content.9979.clicks","5"]
["content.9979.orders","0"]
["content.9979.ctr","2.02"]
["content.9979.averageCpc","0.90"]
["content.9979.spend","4.51"]
["content.9979.acos","13.67"]
["content.9979.roas","7.31"]
["content.9979.revenue","32.99"]
["content.9979.adgroupName","MM2 Quad Drones"]
["content.9979.conversionRate","20.00"]
["content.9980.keywordId","222222222223361"]
["content.9980.campaignId","111111120000320"]
["content.9980.adgroupId","111111120000320"]
["content.9980.bid","0.65"]
["content.9980.keywordText","distance legal distance legal insurance"]
["content.9980.matchType","phrase"]
["content.9980.campaignName","SP_M_KT - MM22 Drones"]
["content.9980.state","enabled"]
["content.9980.conversions","2"]
["content.9980.reportDate","2020-02-10"]
["content.9980.impressions","315"]
["content.9980.clicks","4"]
["content.9980.orders","0"]
["content.9980.ctr","1.27"]
["content.9980.averageCpc","0.93"]
["content.9980.spend","3.70"]
["content.9980.acos","5.61"]
["content.9980.roas","17.83"]
["content.9980.revenue","65.98"]
["content.9980.adgroupName","MM2 Quad Drones"]
["content.9980.conversionRate","50.00"]
["content.9981.keywordId","222222222223362"]
["content.9981.campaignId","111111120000320"]
["content.9981.adgroupId","111111120000320"]
["content.9981.bid","0.50"]
["content.9981.keywordText","charge charge charge charge"]
["content.9981.matchType","phrase"]
["content.9981.campaignName","SP_M_KT - MM22 Drones"]
["content.9981.state","enabled"]
["content.9981.conversions","1"]
["content.9981.reportDate","2020-02-10"]
["content.9981.impressions","519"]
["content.9981.clicks","4"]
["content.9981.orders","0"]
["content.9981.ctr","0.77"]
["content.9981.averageCpc","0.40"]
["content.9981.spend","1.58"]
["content.9981.acos","4.79"]
["content.9981.roas","20.88"]
["content.9981.revenue","32.99"]
["content.9981.adgroupName","MM2 Quad Drones"]
["content.9981.conversionRate","25.00"]
["content.9982.keywordId","222222222223364"]
["content.9982.campaignId","111111120000320"]
["content.9982.adgroupId","111111120000320"]
["content.9982.bid","0.60"]
["content.9982.keywordText","size damage size damage"]
["content.9982.matchType","exact"]
["content.9982.campaignName","SP_M_KT - MM22 Drones"]
["content.9982.state","enabled"]
["content.9982.conversions","0"]
["content.9982.reportDate","2020-02-10"]
["content.9982.impressions","436"]
["content.9982.clicks","4"]
["content.9982.orders","0"]
["content.9982.ctr","0.92"]
["content.9982.averageCpc","0.57"]
["content.9982.spend","2.27"]
["content.9982.roas","0.00"]
["content.9982.revenue","0.00"]
["content.9982.adgroupName","MM2 Quad Drones"]
["content.9982.conversionRate","0.00"]
["content.9983.keywordId","222222222223366"]
["content.9983.campaignId","111111120000320"]
["content.9983.adgroupId","111111120000320"]
["content.9983.bid","0.50"]
["content.9983.keywordText","Drone charge Drone charge"]
["content.9983.matchType","broad"]
["content.9983.campaignName","SP_M_KT - MM22 Drones"]
["content.9983.state","enabled"]
["content.9983.conversions","0"]
["content.9983.reportDate","2020-02-10"]
["content.9983.impressions","15"]
["content.9983.clicks","1"]
["content.9983.orders","0"]
["content.9983.ctr","6.67"]
["content.9983.averageCpc","0.23"]
["content.9983.spend","0.23"]
["content.9983.roas","0.00"]
["content.9983.revenue","0.00"]
["content.9983.adgroupName","MM2 Quad Drones"]
["content.9983.conversionRate","0.00"]
["content.9984.keywordId","222222222223372"]
["content.9984.campaignId","111111120000320"]
["content.9984.adgroupId","111111120000320"]
["content.9984.bid","0.75"]
["content.9984.keywordText","Aerial charge Aerial charge"]
["content.9984.matchType","broad"]
["content.9984.campaignName","SP_M_KT - MM22 Drones"]
["content.9984.state","enabled"]
["content.9984.conversions","0"]
["content.9984.reportDate","2020-02-10"]
["content.9984.impressions","53"]
["content.9984.clicks","2"]
["content.9984.orders","0"]
["content.9984.ctr","3.77"]
["content.9984.averageCpc","0.41"]
["content.9984.spend","0.82"]
["content.9984.roas","0.00"]
["content.9984.revenue","0.00"]
["content.9984.adgroupName","MM2 Quad Drones"]
["content.9984.conversionRate","0.00"]
["content.9985.keywordId","222222222223374"]
["content.9985.campaignId","111111120000320"]
["content.9985.adgroupId","111111120000320"]
["content.9985.bid","0.90"]
["content.9985.keywordText","battery filters battery charge"]
["content.9985.matchType","exact"]
["content.9985.campaignName","SP_M_KT - MM22 Drones"]
["content.9985.state","enabled"]
["content.9985.conversions","0"]
["content.9985.reportDate","2020-02-10"]
["content.9985.impressions","31"]
["content.9985.clicks","1"]
["content.9985.orders","0"]
["content.9985.ctr","3.23"]
["content.9985.averageCpc","0.59"]
["content.9985.spend","0.59"]
["content.9985.roas","0.00"]
["content.9985.revenue","0.00"]
["content.9985.adgroupName","MM2 Quad Drones"]
["content.9985.conversionRate","0.00"]
["content.9986.keywordId","222222222223384"]
["content.9986.campaignId","111111120000326"]
["content.9986.adgroupId","111111120000326"]
["content.9986.bid","0.75"]
["content.9986.keywordText","size insurance size"]
["content.9986.matchType","broad"]
["content.9986.campaignName","SP_M_KT - MM5 Drones"]
["content.9986.state","enabled"]
["content.9986.conversions","0"]
["content.9986.reportDate","2020-02-10"]
["content.9986.impressions","160"]
["content.9986.clicks","1"]
["content.9986.orders","0"]
["content.9986.ctr","0.63"]
["content.9986.averageCpc","0.49"]
["content.9986.spend","0.49"]
["content.9986.roas","0.00"]
["content.9986.revenue","0.00"]
["content.9986.adgroupName","MM5 Quad Drones"]
["content.9986.conversionRate","0.00"]
["content.9987.keywordId","222222222223396"]
["content.9987.campaignId","111111120000326"]
["content.9987.adgroupId","111111120000326"]
["content.9987.bid","0.35"]
["content.9987.keywordText","Aerial filters Aerial filters battery"]
["content.9987.matchType","exact"]
["content.9987.campaignName","SP_M_KT - MM5 Drones"]
["content.9987.state","enabled"]
["content.9987.conversions","0"]
["content.9987.reportDate","2020-02-10"]
["content.9987.impressions","147"]
["content.9987.clicks","1"]
["content.9987.orders","0"]
["content.9987.ctr","0.68"]
["content.9987.averageCpc","0.44"]
["content.9987.spend","0.44"]
["content.9987.roas","0.00"]
["content.9987.revenue","0.00"]
["content.9987.adgroupName","MM5 Quad Drones"]
["content.9987.conversionRate","0.00"]
["content.9988.keywordId","222222222223405"]
["content.9988.campaignId","111111120000326"]
["content.9988.adgroupId","111111120000326"]
["content.9988.bid","0.40"]
["content.9988.keywordText","legal damage legal damage height"]
["content.9988.matchType","exact"]
["content.9988.campaignName","SP_M_KT - MM5 Drones"]
["content.9988.state","enabled"]
["content.9988.conversions","1"]
["content.9988.reportDate","2020-02-10"]
["content.9988.impressions","201"]
["content.9988.clicks","2"]
["content.9988.orders","0"]
["content.9988.ctr","1.00"]
["content.9988.averageCpc","0.49"]
["content.9988.spend","0.97"]
["content.9988.acos","0.62"]
["content.9988.roas","160.76"]
["content.9988.revenue","155.94"]
["content.9988.adgroupName","MM5 Quad Drones"]
["content.9988.conversionRate","50.00"]
["content.9989.keywordId","222222222223408"]
["content.9989.campaignId","111111120000326"]
["content.9989.adgroupId","111111120000326"]
["content.9989.bid","0.50"]
["content.9989.keywordText","camera camera camera insurance"]
["content.9989.matchType","exact"]
["content.9989.campaignName","SP_M_KT - MM5 Drones"]
["content.9989.state","enabled"]
["content.9989.conversions","1"]
["content.9989.reportDate","2020-02-10"]
["content.9989.impressions","48"]
["content.9989.clicks","2"]
["content.9989.orders","0"]
["content.9989.ctr","4.17"]
["content.9989.averageCpc","0.38"]
["content.9989.spend","0.75"]
["content.9989.acos","5.77"]
["content.9989.roas","17.32"]
["content.9989.revenue","12.99"]
["content.9989.adgroupName","MM5 Quad Drones"]
["content.9989.conversionRate","50.00"]
["content.9990.keywordId","222222222223409"]
["content.9990.campaignId","111111120000326"]
["content.9990.adgroupId","111111120000326"]
["content.9990.bid","0.50"]
["content.9990.keywordText","Wifi distance Wifi distance Aerial"]
["content.9990.matchType","exact"]
["content.9990.campaignName","SP_M_KT - MM5 Drones"]
["content.9990.state","enabled"]
["content.9990.conversions","3"]
["content.9990.reportDate","2020-02-10"]
["content.9990.impressions","41"]
["content.9990.clicks","5"]
["content.9990.orders","0"]
["content.9990.ctr","12.20"]
["content.9990.averageCpc","0.54"]
["content.9990.spend","2.70"]
["content.9990.acos","6.93"]
["content.9990.roas","14.43"]
["content.9990.revenue","38.97"]
["content.9990.adgroupName","MM5 Quad Drones"]
["content.9990.conversionRate","60.00"]
["content.9991.keywordId","222222222223414"]
["content.9991.campaignId","111111120000326"]
["content.9991.adgroupId","111111120000326"]
["content.9991.bid","0.53"]
["content.9991.keywordText","filters camera filters Drone"]
["content.9991.matchType","phrase"]
["content.9991.campaignName","SP_M_KT - MM5 Drones"]
["content.9991.state","enabled"]
["content.9991.conversions","0"]
["content.9991.reportDate","2020-02-10"]
["content.9991.impressions","98"]
["content.9991.clicks","1"]
["content.9991.orders","0"]
["content.9991.ctr","1.02"]
["content.9991.averageCpc","0.62"]
["content.9991.spend","0.62"]
["content.9991.roas","0.00"]
["content.9991.revenue","0.00"]
["content.9991.adgroupName","MM5 Quad Drones"]
["content.9991.conversionRate","0.00"]
["content.9992.keywordId","222222222223415"]
["content.9992.campaignId","111111120000326"]
["content.9992.adgroupId","111111120000326"]
["content.9992.bid","0.50"]
["content.9992.keywordText","Wifi charge Wifi charge range"]
["content.9992.matchType","broad"]
["content.9992.campaignName","SP_M_KT - MM5 Drones"]
["content.9992.state","enabled"]
["content.9992.conversions","0"]
["content.9992.reportDate","2020-02-10"]
["content.9992.impressions","378"]
["content.9992.clicks","2"]
["content.9992.orders","0"]
["content.9992.ctr","0.53"]
["content.9992.averageCpc","0.21"]
["content.9992.spend","0.41"]
["content.9992.roas","0.00"]
["content.9992.revenue","0.00"]
["content.9992.adgroupName","MM5 Quad Drones"]
["content.9992.conversionRate","0.00"]
["content.9993.keywordId","222222222223420"]
["content.9993.campaignId","111111120000326"]
["content.9993.adgroupId","111111120000326"]
["content.9993.bid","0.55"]
["content.9993.keywordText","filters height filters height camera"]
["content.9993.matchType","exact"]
["content.9993.campaignName","SP_M_KT - MM5 Drones"]
["content.9993.state","enabled"]
["content.9993.conversions","0"]
["content.9993.reportDate","2020-02-10"]
["content.9993.impressions","63"]
["content.9993.clicks","1"]
["content.9993.orders","0"]
["content.9993.ctr","1.59"]
["content.9993.averageCpc","0.23"]
["content.9993.spend","0.23"]
["content.9993.roas","0.00"]
["content.9993.revenue","0.00"]
["content.9993.adgroupName","MM5 Quad Drones"]
["content.9993.conversionRate","0.00"]
["content.9994.keywordId","222222222223422"]
["content.9994.campaignId","111111120000326"]
["content.9994.adgroupId","111111120000326"]
["content.9994.bid","0.50"]
["content.9994.keywordText","legal charge legal charge filters"]
["content.9994.matchType","exact"]
["content.9994.campaignName","SP_M_KT - MM5 Drones"]
["content.9994.state","enabled"]
["content.9994.conversions","1"]
["content.9994.reportDate","2020-02-10"]
["content.9994.impressions","387"]
["content.9994.clicks","1"]
["content.9994.orders","0"]
["content.9994.ctr","0.26"]
["content.9994.averageCpc","0.28"]
["content.9994.spend","0.28"]
["content.9994.acos","0.74"]
["content.9994.roas","135.89"]
["content.9994.revenue","38.05"]
["content.9994.adgroupName","MM5 Quad Drones"]
["content.9994.conversionRate","100.00"]
["content.9995.keywordId","222222222223423"]
["content.9995.campaignId","111111120000326"]
["content.9995.adgroupId","111111120000326"]
["content.9995.bid","0.50"]
["content.9995.keywordText","weight damage weight damage distance"]
["content.9995.matchType","phrase"]
["content.9995.campaignName","SP_M_KT - MM5 Drones"]
["content.9995.state","enabled"]
["content.9995.conversions","0"]
["content.9995.reportDate","2020-02-10"]
["content.9995.impressions","18"]
["content.9995.clicks","1"]
["content.9995.orders","0"]
["content.9995.ctr","5.56"]
["content.9995.averageCpc","0.12"]
["content.9995.spend","0.12"]
["content.9995.roas","0.00"]
["content.9995.revenue","0.00"]
["content.9995.adgroupName","MM5 Quad Drones"]
["content.9995.conversionRate","0.00"]
["content.9996.keywordId","222222222223426"]
["content.9996.campaignId","111111120000326"]
["content.9996.adgroupId","111111120000326"]
["content.9996.bid","0.65"]
["content.9996.keywordText","range permission range permission damage"]
["content.9996.matchType","exact"]
["content.9996.campaignName","SP_M_KT - MM5 Drones"]
["content.9996.state","enabled"]
["content.9996.conversions","0"]
["content.9996.reportDate","2020-02-10"]
["content.9996.impressions","27"]
["content.9996.clicks","2"]
["content.9996.orders","0"]
["content.9996.ctr","7.41"]
["content.9996.averageCpc","0.02"]
["content.9996.spend","0.04"]
["content.9996.roas","0.00"]
["content.9996.revenue","0.00"]
["content.9996.adgroupName","MM5 Quad Drones"]
["content.9996.conversionRate","0.00"]
["content.9997.keywordId","222222222223439"]
["content.9997.campaignId","111111120000326"]
["content.9997.adgroupId","111111120000326"]
["content.9997.bid","1.00"]
["content.9997.keywordText","camera damage camera damage size"]
["content.9997.matchType","phrase"]
["content.9997.campaignName","SP_M_KT - MM5 Drones"]
["content.9997.state","enabled"]
["content.9997.conversions","0"]
["content.9997.reportDate","2020-02-10"]
["content.9997.impressions","14"]
["content.9997.clicks","1"]
["content.9997.orders","0"]
["content.9997.ctr","7.14"]
["content.9997.averageCpc","0.10"]
["content.9997.spend","0.10"]
["content.9997.roas","0.00"]
["content.9997.revenue","0.00"]
["content.9997.adgroupName","MM5 Quad Drones"]
["content.9997.conversionRate","0.00"]
["content.9998.keywordId","222222222223447"]
["content.9998.campaignId","111111120000326"]
["content.9998.adgroupId","111111120000326"]
["content.9998.bid","0.36"]
["content.9998.keywordText","height Drone height Drone battery"]
["content.9998.matchType","exact"]
["content.9998.campaignName","SP_M_KT - MM5 Drones"]
["content.9998.state","enabled"]
["content.9998.conversions","1"]
["content.9998.reportDate","2020-02-10"]
["content.9998.impressions","31"]
["content.9998.clicks","1"]
["content.9998.orders","0"]
["content.9998.ctr","3.23"]
["content.9998.averageCpc","0.65"]
["content.9998.spend","0.65"]
["content.9998.acos","1.25"]
["content.9998.roas","79.94"]
["content.9998.revenue","51.96"]
["content.9998.adgroupName","MM5 Quad Drones"]
["content.9998.conversionRate","100.00"]
["content.9999.keywordId","222222222223449"]
["content.9999.campaignId","111111120000326"]
["content.9999.adgroupId","111111120000326"]
["content.9999.bid","0.50"]
["content.9999.keywordText","insurance range insurance range distance"]
["content.9999.matchType","phrase"]
["content.9999.campaignName","SP_M_KT - MM5 Drones"]
["content.9999.state","enabled"]
["content.9999.conversions","1"]
["content.9999.reportDate","2020-02-10"]
["content.9999.impressions","93"]
["content.9999.clicks","2"]
["content.9999.orders","0"]
["content.9999.ctr","2.15"]
["content.9999.averageCpc","0.73"]
["content.9999.spend","1.45"]
["content.9999.acos","11.25"]
["content.9999.roas","8.89"]
["content.9999.revenue","12.89"]
["content.9999.adgroupName","MM5 Quad Drones"]
["content.9999.conversionRate","50.00"]

{"sheet":"Settings","index":1,"n_rows":11,"n_cols":9,"rows_kept":11,"cut":false,"hidden":false,"merged":[]}
["Api Key",null,null,null,"Please Choose Account","Account Id",null,"ApiCheckStatus",true]
[null,null,null,null,"Wiser Drones - Spain",11350,null,"organizationName","Demo - Wiser Drones"]
["Start Date use  m/d/yyyy",null,null,null,"Wiser Drones  - India",13610,null,"organizationId",10390]
["End Date   use  m/d/yyyy",null,null,null,"Wiser Drones  - Australia",13640,null,"businessGroupName",10390]
[null,null,null,null,"Wiser Drones  - Japan",13620,null,"Account Id",{"$f":"VLOOKUP(B8,E1:F41,2,)","v":{"$error":"#N/A"}}]
[null,null,null,null,"Wiser Drones",10350,null,"ribbon",2049682809872]
[null,null,null,null,"Wiser Drones  - UK",11360]
["Account Name",null,null,null,"Wiser Drones  - Germany",10410]
[null,null,null,null,"Wiser Drones  - Mexico",13630]
[null,null,null,null,"Wiser Drones - Cananda",10400]
[null,null,null,null,"Wiser Drones - France",11370]

{"sheet":"All Campaigns","index":2,"n_rows":1,"n_cols":20,"rows_kept":1,"cut":false,"hidden":false,"merged":[]}
["campaignName","campaignType","status","targetingType","dailyBudget","startDate","endDate","reportDate","impressions","clicks","spend","revenue","orders","ctr","acos","roas","conversions","conversionRate","strategy","averageCpc"]

{"sheet":"SP Keyword","index":3,"n_rows":1,"n_cols":18,"rows_kept":1,"cut":false,"hidden":false,"merged":[]}
["keywordText","matchType","bid","status","adgroupName","campaignName","reportDate","impressions","clicks","spend","revenue","orders","ctr","acos","roas","averageCpc","conversions","conversionRate"]

{"sheet":"SB Keyword","index":4,"n_rows":1,"n_cols":17,"rows_kept":1,"cut":false,"hidden":false,"merged":[]}
["keywordText","matchType","bid","status","campaignName","reportDate","impressions","clicks","spend","revenue","orders","ctr","acos","roas","averageCpc","conversions","conversionRate"]

{"sheet":"SP Product","index":5,"n_rows":1,"n_cols":17,"rows_kept":1,"cut":false,"hidden":false,"merged":[]}
["asin","asinDesc","status","adgroupName","campaignName","reportDate","impressions","clicks","spend","revenue","orders","ctr","acos","roas","averageCpc","conversions","conversionRate"]